Effective Date,Department,Supplier Name,Payment Date,Amount **,Purpose of Spend,Merchant Category,Card Transaction
Statement 18/08/2015 to 17/09/2015,Adults and Communities,A.E. BURGESS & SON,04/09/2015,185,Materials - General,"Utilities-Electric, Gas, Sanitary, Water",GPC
Statement 18/08/2015 to 17/09/2015,Adults and Communities,Amazon Svcs Europe SAR,26/08/2015,2.48,Books - General,Book Stores,GPC
Statement 18/08/2015 to 17/09/2015,Adults and Communities,Amazon Svcs Europe SAR,15/09/2015,26.7,Books - General,Book Stores,GPC
Statement 18/08/2015 to 17/09/2015,Adults and Communities,Amazon UK Marketplace,20/08/2015,13.24,Books - General,Book Stores,GPC
Statement 18/08/2015 to 17/09/2015,Adults and Communities,Amazon UK Marketplace,21/08/2015,8.76,Books - General,Book Stores,GPC
Statement 18/08/2015 to 17/09/2015,Adults and Communities,Amazon UK Marketplace,08/09/2015,15.4,Display/Conservn/Exhibitions - Displays/Field Research,Miscellaneous and Specialty Retail Stores,GPC
Statement 18/08/2015 to 17/09/2015,Adults and Communities,Amazon UK Marketplace,20/08/2015,11.78,General Equipment - General,Book Stores,GPC
Statement 18/08/2015 to 17/09/2015,Adults and Communities,Amazon UK Marketplace,20/08/2015,5.45,General Equipment - General,Miscellaneous and Specialty Retail Stores,GPC
Statement 18/08/2015 to 17/09/2015,Adults and Communities,Amazon UK Marketplace,20/08/2015,15.31,General Equipment - General,Miscellaneous and Specialty Retail Stores,GPC
Statement 18/08/2015 to 17/09/2015,Adults and Communities,Amazon UK Marketplace,25/08/2015,0.91,General Equipment - General,Book Stores,GPC
Statement 18/08/2015 to 17/09/2015,Adults and Communities,Amazon UK Marketplace,01/09/2015,6.29,General Equipment - General,Miscellaneous and Specialty Retail Stores,GPC
Statement 18/08/2015 to 17/09/2015,Adults and Communities,Amazon UK Marketplace,02/09/2015,48.3,General Equipment - General,Miscellaneous and Specialty Retail Stores,GPC
Statement 18/08/2015 to 17/09/2015,Adults and Communities,Amazon UK Marketplace,10/09/2015,17.06,General Equipment - General,Book Stores,GPC
Statement 18/08/2015 to 17/09/2015,Adults and Communities,Amazon UK Marketplace,21/08/2015,10.48,Materials - General,Miscellaneous and Specialty Retail Stores,GPC
Statement 18/08/2015 to 17/09/2015,Adults and Communities,Amazon UK Marketplace,25/08/2015,9.85,Materials - General,Miscellaneous and Specialty Retail Stores,GPC
Statement 18/08/2015 to 17/09/2015,Adults and Communities,Amazon UK Marketplace,01/09/2015,5.82,Materials - General,Miscellaneous and Specialty Retail Stores,GPC
Statement 18/08/2015 to 17/09/2015,Adults and Communities,Amazon UK Marketplace,02/09/2015,14.85,Materials - General,Miscellaneous and Specialty Retail Stores,GPC
Statement 18/08/2015 to 17/09/2015,Adults and Communities,Amazon UK Marketplace,02/09/2015,57.73,Materials - General,Miscellaneous and Specialty Retail Stores,GPC
Statement 18/08/2015 to 17/09/2015,Adults and Communities,Amazon UK Marketplace,04/09/2015,3.15,Materials - General,Miscellaneous and Specialty Retail Stores,GPC
Statement 18/08/2015 to 17/09/2015,Adults and Communities,Amazon UK Marketplace,08/09/2015,12.51,Materials - General,Miscellaneous and Specialty Retail Stores,GPC
Statement 18/08/2015 to 17/09/2015,Adults and Communities,Amazon UK Marketplace,08/09/2015,15.06,Materials - General,Miscellaneous and Specialty Retail Stores,GPC
Statement 18/08/2015 to 17/09/2015,Adults and Communities,Amazon UK Marketplace,08/09/2015,9.94,Materials - General,Miscellaneous and Specialty Retail Stores,GPC
Statement 18/08/2015 to 17/09/2015,Adults and Communities,Amazon UK Marketplace,09/09/2015,1.79,Materials - General,Miscellaneous and Specialty Retail Stores,GPC
Statement 18/08/2015 to 17/09/2015,Adults and Communities,Amazon UK Marketplace,20/08/2015,28.75,Other Equipment & Materials - General,Miscellaneous and Specialty Retail Stores,GPC
Statement 18/08/2015 to 17/09/2015,Adults and Communities,Amazon UK Marketplace,21/08/2015,16.25,Other Equipment & Materials - General,Miscellaneous and Specialty Retail Stores,GPC
Statement 18/08/2015 to 17/09/2015,Adults and Communities,Amazon UK Marketplace,16/09/2015,2.95,Other Equipment & Materials - General,Book Stores,GPC
Statement 18/08/2015 to 17/09/2015,Adults and Communities,Amazon UK Marketplace,10/09/2015,13.62,Other Expenditure - General,Miscellaneous and Specialty Retail Stores,GPC
Statement 18/08/2015 to 17/09/2015,Adults and Communities,Amazon UK Marketplace,16/09/2015,7.08,Other Expenditure - General,Miscellaneous and Specialty Retail Stores,GPC
Statement 18/08/2015 to 17/09/2015,Adults and Communities,Amazon UK Marketplace,16/09/2015,44.98,Other Expenditure - General,Miscellaneous and Specialty Retail Stores,GPC
Statement 18/08/2015 to 17/09/2015,Adults and Communities,Amazon UK Marketplace,01/09/2015,38.27,Other Services - General,Miscellaneous and Specialty Retail Stores,GPC
Statement 18/08/2015 to 17/09/2015,Adults and Communities,Amazon UK Marketplace,15/09/2015,35.96,Other Services - General,Book Stores,GPC
Statement 18/08/2015 to 17/09/2015,Adults and Communities,Amazon UK Marketplace,01/09/2015,7.99,Postal Services - General,Miscellaneous and Specialty Retail Stores,GPC
Statement 18/08/2015 to 17/09/2015,Adults and Communities,Amazon UK Marketplace,02/09/2015,2.78,Postal Services - General,Miscellaneous and Specialty Retail Stores,GPC
Statement 18/08/2015 to 17/09/2015,Adults and Communities,Amazon UK Marketplace,20/08/2015,23.98,Schools Agency staff - Support Staff,Miscellaneous and Specialty Retail Stores,GPC
Statement 18/08/2015 to 17/09/2015,Adults and Communities,Amazon UK Marketplace,02/09/2015,20.83,Stationery - General,Book Stores,GPC
Statement 18/08/2015 to 17/09/2015,Adults and Communities,Amazon UK Marketplace,10/09/2015,1.1,Stationery - General,Book Stores,GPC
Statement 18/08/2015 to 17/09/2015,Adults and Communities,Amazon UK Retail,11/09/2015,21.79,Books - General,Direct Marketers - Other,GPC
Statement 18/08/2015 to 17/09/2015,Adults and Communities,Amazon UK Retail,08/09/2015,19.47,Display/Conservn/Exhibitions - Displays/Field Research,Direct Marketers - Other,GPC
Statement 18/08/2015 to 17/09/2015,Adults and Communities,Amazon UK Retail,27/08/2015,17.86,Laundry - General,Direct Marketers - Other,GPC
Statement 18/08/2015 to 17/09/2015,Adults and Communities,Amazon UK Retail,22/08/2015,8.33,Materials - General,Direct Marketers - Other,GPC
Statement 18/08/2015 to 17/09/2015,Adults and Communities,Amazon UK Retail,25/08/2015,-1.99,Materials - General,Direct Marketers - Other,GPC
Statement 18/08/2015 to 17/09/2015,Adults and Communities,Amazon UK Retail,27/08/2015,8.33,Materials - General,Direct Marketers - Other,GPC
Statement 18/08/2015 to 17/09/2015,Adults and Communities,Amazon UK Retail,05/09/2015,8.33,Materials - General,Direct Marketers - Other,GPC
Statement 18/08/2015 to 17/09/2015,Adults and Communities,Amazon UK Retail,18/08/2015,34.47,Operational Equipment - DDA,Direct Marketers - Other,GPC
Statement 18/08/2015 to 17/09/2015,Adults and Communities,Amazon UK Retail,16/09/2015,13.73,Other Equipment & Materials - General,Direct Marketers - Other,GPC
Statement 18/08/2015 to 17/09/2015,Adults and Communities,Amazon UK Retail,22/08/2015,31.78,Other Expenditure - General,Direct Marketers - Other,GPC
Statement 18/08/2015 to 17/09/2015,Adults and Communities,Amazon UK Retail,02/09/2015,7.98,Other Expenditure - General,Direct Marketers - Other,GPC
Statement 18/08/2015 to 17/09/2015,Adults and Communities,Amazon UK Retail,07/09/2015,149,Other Expenditure - General,Direct Marketers - Other,GPC
Statement 18/08/2015 to 17/09/2015,Adults and Communities,Amazon UK Retail,08/09/2015,19.55,Other Expenditure - General,Direct Marketers - Other,GPC
Statement 18/08/2015 to 17/09/2015,Adults and Communities,Amazon UK Retail,09/09/2015,46.95,Other Expenditure - General,Direct Marketers - Other,GPC
Statement 18/08/2015 to 17/09/2015,Adults and Communities,Amazon UK Retail,11/09/2015,9.75,Other Expenditure - General,Direct Marketers - Other,GPC
Statement 18/08/2015 to 17/09/2015,Adults and Communities,Amazon UK Retail,11/09/2015,2.99,Postal Services - General,Direct Marketers - Other,GPC
Statement 18/08/2015 to 17/09/2015,Adults and Communities,ANCESTRY.CO.UK,20/08/2015,150,Training Expenses - General,Continuity/Subscription Merchants,GPC
Statement 18/08/2015 to 17/09/2015,Adults and Communities,ARGOS LTD,21/08/2015,60.79,Aids & Adaptations - Minor Adaptations,Discount Stores,GPC
Statement 18/08/2015 to 17/09/2015,Adults and Communities,ARGOS LTD,15/09/2015,58.55,General Equipment - General,Discount Stores,GPC
Statement 18/08/2015 to 17/09/2015,Adults and Communities,ARGOS LTD,15/09/2015,23.74,General Equipment - General,Discount Stores,GPC
Statement 18/08/2015 to 17/09/2015,Adults and Communities,ARGOS RETAIL GROUP,18/08/2015,287.94,Materials - General,Discount Stores,GPC
Statement 18/08/2015 to 17/09/2015,Adults and Communities,ASDA STORES,17/08/2015,15,Materials - General,"Grocery Stores, Supermarkets",GPC
Statement 18/08/2015 to 17/09/2015,Adults and Communities,ASDA STORES,04/09/2015,3,Materials - General,"Grocery Stores, Supermarkets",GPC
Statement 18/08/2015 to 17/09/2015,Adults and Communities,ASDA SUPERSTORE,21/08/2015,33.33,General Equipment - General,"Grocery Stores, Supermarkets",GPC
Statement 18/08/2015 to 17/09/2015,Adults and Communities,ASDA SUPERSTORE,01/09/2015,33.33,General Equipment - General,"Grocery Stores, Supermarkets",GPC
Statement 18/08/2015 to 17/09/2015,Adults and Communities,ASDA SUPERSTORE,27/08/2015,3.2,Laundry - General,"Grocery Stores, Supermarkets",GPC
Statement 18/08/2015 to 17/09/2015,Adults and Communities,ASDA SUPERSTORE,18/08/2015,213.14,Provisions - General,"Grocery Stores, Supermarkets",GPC
Statement 18/08/2015 to 17/09/2015,Adults and Communities,ASDA SUPERSTORE,18/08/2015,38.54,Provisions - General,"Grocery Stores, Supermarkets",GPC
Statement 18/08/2015 to 17/09/2015,Adults and Communities,ASDA SUPERSTORE,15/09/2015,38.46,Provisions - General,"Grocery Stores, Supermarkets",GPC
Statement 18/08/2015 to 17/09/2015,Adults and Communities,AUSDEN CLARK LTD,04/09/2015,163.2,Other Expenditure - General,Automotive Repair Shops (non-dealer),GPC
Statement 18/08/2015 to 17/09/2015,Adults and Communities,B & Q,26/08/2015,61.8,Aids & Adaptations - Minor Adaptations,"Building Materials, Lumber Stores",GPC
Statement 18/08/2015 to 17/09/2015,Adults and Communities,B & Q,26/08/2015,19.96,General Equipment - General,"Building Materials, Lumber Stores",GPC
Statement 18/08/2015 to 17/09/2015,Adults and Communities,B & Q,10/09/2015,16.68,General Equipment - General,"Building Materials, Lumber Stores",GPC
Statement 18/08/2015 to 17/09/2015,Adults and Communities,B&M RETAIL LTD,01/09/2015,13.3,General Equipment - General,Discount Stores,GPC
Statement 18/08/2015 to 17/09/2015,Adults and Communities,B&M RETAIL LTD,01/09/2015,55.43,Other Expenditure - General,Discount Stores,GPC
Statement 18/08/2015 to 17/09/2015,Adults and Communities,B&M RETAIL LTD,09/09/2015,57.89,Provisions - General,Discount Stores,GPC
Statement 18/08/2015 to 17/09/2015,Adults and Communities,B&Q,18/08/2015,34.06,Aids & Adaptations - Minor Adaptations,"Building Materials, Lumber Stores",GPC
Statement 18/08/2015 to 17/09/2015,Adults and Communities,B&Q,19/08/2015,11.96,Aids & Adaptations - Minor Adaptations,"Building Materials, Lumber Stores",GPC
Statement 18/08/2015 to 17/09/2015,Adults and Communities,B&Q,03/09/2015,26.64,Aids & Adaptations - Minor Adaptations,"Building Materials, Lumber Stores",GPC
Statement 18/08/2015 to 17/09/2015,Adults and Communities,B&Q,03/09/2015,9.72,General Equipment - General,"Building Materials, Lumber Stores",GPC
Statement 18/08/2015 to 17/09/2015,Adults and Communities,BENTLEY PRIORY OF BRIT,15/09/2015,8.17,Other Equipment & Materials - General,Charitable and Social Service Organizations,GPC
Statement 18/08/2015 to 17/09/2015,Adults and Communities,BETTER EQUIPPED SUPPLI,17/08/2015,9.47,Other Equipment & Materials - General,Miscellaneous and Specialty Retail Stores,GPC
Statement 18/08/2015 to 17/09/2015,Adults and Communities,BLAKEMORE/TATES LIMITE,23/08/2015,4.25,Provisions - General,"Grocery Stores, Supermarkets",GPC
Statement 18/08/2015 to 17/09/2015,Adults and Communities,BOC TEL ORDER,16/09/2015,6.69,General Equipment - General,Chemicals and Allied Products Not Elsewhere Classi,GPC
Statement 18/08/2015 to 17/09/2015,Adults and Communities,C V PUBLISHERS LTD,28/08/2015,91.67,Books - General,Miscellaneous Publishing and  Printing,GPC
Statement 18/08/2015 to 17/09/2015,Adults and Communities,CampaignMonitor.co,17/08/2015,128.12,Other Equipment & Materials - General,Business Services-Not Elsewhere Classified,GPC
Statement 18/08/2015 to 17/09/2015,Adults and Communities,CENTRAL ENG COOP,17/08/2015,11.19,Materials - General,Department Stores,GPC
Statement 18/08/2015 to 17/09/2015,Adults and Communities,CENTRAL ENG COOP,19/08/2015,1.3,Provisions - General,Department Stores,GPC
Statement 18/08/2015 to 17/09/2015,Adults and Communities,CENTRAL ENG COOP,19/08/2015,22.63,Provisions - General,Department Stores,GPC
Statement 18/08/2015 to 17/09/2015,Adults and Communities,CENTRAL ENG COOP,22/08/2015,14.32,Provisions - General,Department Stores,GPC
Statement 18/08/2015 to 17/09/2015,Adults and Communities,CENTRAL ENG COOP,29/08/2015,1.7,Provisions - General,Department Stores,GPC
Statement 18/08/2015 to 17/09/2015,Adults and Communities,CENTRAL ENG COOP,29/08/2015,71.57,Provisions - General,Department Stores,GPC
Statement 18/08/2015 to 17/09/2015,Adults and Communities,CENTRAL ENG COOP,05/09/2015,14.67,Provisions - General,Department Stores,GPC
Statement 18/08/2015 to 17/09/2015,Adults and Communities,CENTRAL ENG COOP,07/09/2015,18.1,Provisions - General,Department Stores,GPC
Statement 18/08/2015 to 17/09/2015,Adults and Communities,CENTRAL ENG COOP,11/09/2015,32.64,Provisions - General,Department Stores,GPC
Statement 18/08/2015 to 17/09/2015,Adults and Communities,CHARNWOOD ARMS,05/09/2015,40.57,Provisions - General,"Drinking Places (Alcoholic Beverages)-Bars, Tavern",GPC
Statement 18/08/2015 to 17/09/2015,Adults and Communities,CHARNWOOD BC MOTO,24/08/2015,245.28,Supported Living - Main Programme,Government Services-Not Elsewhere Classified,GPC
Statement 18/08/2015 to 17/09/2015,Adults and Communities,CHARNWOOD BC MOTO,24/08/2015,197.88,Supported Living - Main Programme,Government Services-Not Elsewhere Classified,GPC
Statement 18/08/2015 to 17/09/2015,Adults and Communities,CHARNWOOD BOROUGH COUNCI,15/09/2015,6,Casual/Essential - General,Automobile Parking Lots and Garages,GPC
Statement 18/08/2015 to 17/09/2015,Adults and Communities,COSTA COFFEE,01/09/2015,6.8,Subsistence - General,Fast-Food Restaurants (Quick Payment Service Pilot,GPC
Statement 18/08/2015 to 17/09/2015,Adults and Communities,COSTA COFFEE,16/09/2015,6.3,Subsistence - General,Fast-Food Restaurants (Quick Payment Service Pilot,GPC
Statement 18/08/2015 to 17/09/2015,Adults and Communities,CP-LIGHTING.CO.UK,10/09/2015,20.62,Display/Conservn/Exhibitions - Exhibitions,Miscellaneous and Specialty Retail Stores,GPC
Statement 18/08/2015 to 17/09/2015,Adults and Communities,CURRYS ONLINE,16/09/2015,399,Materials - General,"RADIO, TELEVISION, AND STEREO STORES (ELECTRONIC STORES)",GPC
Statement 18/08/2015 to 17/09/2015,Adults and Communities,DE MONTFORT EXPERTISE LTD,15/09/2015,500,Training Expenses - General,"Colleges, Universities, Professional Schools, and",GPC
Statement 18/08/2015 to 17/09/2015,Adults and Communities,DE MONTFORT EXPERTISE LTD,15/09/2015,39.4,Training Expenses - General,"Colleges, Universities, Professional Schools, and",GPC
Statement 18/08/2015 to 17/09/2015,Adults and Communities,DEMONTFORD UNIVERS,21/08/2015,5.8,Subsistence - General,"Eating Places, Restaurants",GPC
Statement 18/08/2015 to 17/09/2015,Adults and Communities,DUNELM (SOFT FURNISHIN,25/08/2015,99.79,General Equipment - General,"Drapery, Window Coverings, and Upholstery Stores",GPC
Statement 18/08/2015 to 17/09/2015,Adults and Communities,EASTMIDLANDSTRAINS,01/09/2015,120.5,Casual/Essential - General,Passenger Railways,GPC
Statement 18/08/2015 to 17/09/2015,Adults and Communities,EASTMIDLANDSTRAINS,16/09/2015,18.9,Casual/Essential - General,Passenger Railways,GPC
Statement 18/08/2015 to 17/09/2015,Adults and Communities,EBUYER (UK) LTD,21/08/2015,37.97,Operational Equipment - General,Household Appliance Stores,GPC
Statement 18/08/2015 to 17/09/2015,Adults and Communities,FAST KEY SERVICES,07/09/2015,6.74,Other Equipment & Materials - General,Business Services-Not Elsewhere Classified,GPC
Statement 18/08/2015 to 17/09/2015,Adults and Communities,FOREIGN EXCHANGE FEE,18/08/2015,3.52,Other Equipment & Materials - General,Misc-Unknown,GPC
Statement 18/08/2015 to 17/09/2015,Adults and Communities,GBS RE NHS BSA DENTAL,17/08/2015,159.8,Other Expenditure - General,Government Services-Not Elsewhere Classified,GPC
Statement 18/08/2015 to 17/09/2015,Adults and Communities,GOOSEBERRY BUSH,02/09/2015,118.92,Schools Agency staff - Teaching Staff,Child Care Services,GPC
Statement 18/08/2015 to 17/09/2015,Adults and Communities,HALFORDS 0428,17/08/2015,10,Materials - General,Bicycle Shops-Sales and Service,GPC
Statement 18/08/2015 to 17/09/2015,Adults and Communities,HAMPTON BY HILTON,07/09/2015,70.13,Consultants & Specialists - General,Hampton Inn Hotels,GPC
Statement 18/08/2015 to 17/09/2015,Adults and Communities,HAMPTON BY HILTON,07/09/2015,70.13,Consultants & Specialists - General,Hampton Inn Hotels,GPC
Statement 18/08/2015 to 17/09/2015,Adults and Communities,HARLOW BROS LTD,10/09/2015,80.54,Aids & Adaptations - Minor Adaptations,"Building Materials, Lumber Stores",GPC
Statement 18/08/2015 to 17/09/2015,Adults and Communities,ICELAND,22/08/2015,8.8,Provisions - General,"Grocery Stores, Supermarkets",GPC
Statement 18/08/2015 to 17/09/2015,Adults and Communities,ITUNES.COM/BILL,09/09/2015,1.49,Materials - General,Record Shops,GPC
Statement 18/08/2015 to 17/09/2015,Adults and Communities,IZ  Cafe Torte,08/09/2015,5,Subsistence - General,"Eating Places, Restaurants",GPC
Statement 18/08/2015 to 17/09/2015,Adults and Communities,JOHNSTONES DECORATING,18/08/2015,30,Aids & Adaptations - Minor Adaptations,"Glass, Paint, Wallpaper Stores",GPC
Statement 18/08/2015 to 17/09/2015,Adults and Communities,JOHNSTONES DECORATING,26/08/2015,32,Aids & Adaptations - Minor Adaptations,"Glass, Paint, Wallpaper Stores",GPC
Statement 18/08/2015 to 17/09/2015,Adults and Communities,JOHNSTONES DECORATING,10/09/2015,30,Aids & Adaptations - Minor Adaptations,"Glass, Paint, Wallpaper Stores",GPC
Statement 18/08/2015 to 17/09/2015,Adults and Communities,JOHNSTONES DECORATING,15/09/2015,60,Aids & Adaptations - Minor Adaptations,"Glass, Paint, Wallpaper Stores",GPC
Statement 18/08/2015 to 17/09/2015,Adults and Communities,JOHNSTONES DECORATING,15/09/2015,60,Aids & Adaptations - Minor Adaptations,"Glass, Paint, Wallpaper Stores",GPC
Statement 18/08/2015 to 17/09/2015,Adults and Communities,LCC CATERING SERVICES,24/08/2015,3.9,Other Expenditure - General,Government Services-Not Elsewhere Classified,GPC
Statement 18/08/2015 to 17/09/2015,Adults and Communities,LEIC CITY COUNCIL,19/08/2015,33,Other Expenditure - General,Government Services-Not Elsewhere Classified,GPC
Statement 18/08/2015 to 17/09/2015,Adults and Communities,LEIC CITY COUNCIL,03/09/2015,13,Other Expenditure - General,Government Services-Not Elsewhere Classified,GPC
Statement 18/08/2015 to 17/09/2015,Adults and Communities,LEIC CITY COUNCIL,07/09/2015,-10,Other Expenditure - General,Government Services-Not Elsewhere Classified,GPC
Statement 18/08/2015 to 17/09/2015,Adults and Communities,LEIC CITY COUNCIL,07/09/2015,13,Other Expenditure - General,Government Services-Not Elsewhere Classified,GPC
Statement 18/08/2015 to 17/09/2015,Adults and Communities,LIDL UK,28/08/2015,13.77,Provisions - General,"Grocery Stores, Supermarkets",GPC
Statement 18/08/2015 to 17/09/2015,Adults and Communities,LIDL UK,28/08/2015,16.75,Provisions - General,"Grocery Stores, Supermarkets",GPC
Statement 18/08/2015 to 17/09/2015,Adults and Communities,MAGIPRINT LIMITED,18/08/2015,118.8,Materials - General,Family Clothing Stores,GPC
Statement 18/08/2015 to 17/09/2015,Adults and Communities,MUSEUMSASSC,01/09/2015,370,Consultants & Specialists - General,Charitable and Social Service Organizations,GPC
Statement 18/08/2015 to 17/09/2015,Adults and Communities,MUSEUMSASSC,01/09/2015,370,Consultants & Specialists - General,Charitable and Social Service Organizations,GPC
Statement 18/08/2015 to 17/09/2015,Adults and Communities,MYMEMORYLTD,16/09/2015,57.98,Materials - General,"RADIO, TELEVISION, AND STEREO STORES (ELECTRONIC STORES)",GPC
Statement 18/08/2015 to 17/09/2015,Adults and Communities,NRS HEALTHCARE,17/08/2015,115,General Equipment - General,Laboratory/Medical/Dental/Ophthalmic Hospital Equi,GPC
Statement 18/08/2015 to 17/09/2015,Adults and Communities,NRS HEALTHCARE,17/08/2015,84.99,General Equipment - General,Laboratory/Medical/Dental/Ophthalmic Hospital Equi,GPC
Statement 18/08/2015 to 17/09/2015,Adults and Communities,NUNEATON TOOLBOX,04/09/2015,9.48,Operational Equipment - General,Hardware Stores,GPC
Statement 18/08/2015 to 17/09/2015,Adults and Communities,NWLDC CARD PAYMENT,18/08/2015,25.5,General Equipment - General,Government Services-Not Elsewhere Classified,GPC
Statement 18/08/2015 to 17/09/2015,Adults and Communities,OCADO LTD.,20/08/2015,67.86,Provisions - General,"Miscellaneous Food Stores-Convenience Stores, Mark",GPC
Statement 18/08/2015 to 17/09/2015,Adults and Communities,OCADO LTD.,24/08/2015,82.2,Provisions - General,"Miscellaneous Food Stores-Convenience Stores, Mark",GPC
Statement 18/08/2015 to 17/09/2015,Adults and Communities,OCADO LTD.,27/08/2015,55.81,Provisions - General,"Miscellaneous Food Stores-Convenience Stores, Mark",GPC
Statement 18/08/2015 to 17/09/2015,Adults and Communities,OCADO LTD.,04/09/2015,79.71,Provisions - General,"Miscellaneous Food Stores-Convenience Stores, Mark",GPC
Statement 18/08/2015 to 17/09/2015,Adults and Communities,OCADO RETAIL LIMIT,20/08/2015,62.16,Provisions - General,"Miscellaneous Food Stores-Convenience Stores, Mark",GPC
Statement 18/08/2015 to 17/09/2015,Adults and Communities,OCADO RETAIL LIMIT,31/08/2015,82.21,Provisions - General,"Miscellaneous Food Stores-Convenience Stores, Mark",GPC
Statement 18/08/2015 to 17/09/2015,Adults and Communities,OCADO RETAIL LIMIT,10/09/2015,79.8,Provisions - General,"Miscellaneous Food Stores-Convenience Stores, Mark",GPC
Statement 18/08/2015 to 17/09/2015,Adults and Communities,OCADO RETAIL LIMIT,12/09/2015,98.63,Provisions - General,"Miscellaneous Food Stores-Convenience Stores, Mark",GPC
Statement 18/08/2015 to 17/09/2015,Adults and Communities,OCADO RETAIL LIMIT,15/09/2015,68.66,Provisions - General,"Miscellaneous Food Stores-Convenience Stores, Mark",GPC
Statement 18/08/2015 to 17/09/2015,Adults and Communities,OSBORNES OADBY,02/09/2015,17.68,Stationery - General,"Stationery, Office, and School Supply Stores",GPC
Statement 18/08/2015 to 17/09/2015,Adults and Communities,PAYPAL  DAVIEPURVES,10/09/2015,5,Other Equipment & Materials - General,Miscellaneous and Specialty Retail Stores,GPC
Statement 18/08/2015 to 17/09/2015,Adults and Communities,PAYPAL  ETILLS LTD,24/08/2015,9.99,Other Equipment & Materials - General,Antique Shops,GPC
Statement 18/08/2015 to 17/09/2015,Adults and Communities,PAYPAL  EUROFFICELT,17/08/2015,176.65,Stationery - General,"Stationery, Office, and School Supply Stores",GPC
Statement 18/08/2015 to 17/09/2015,Adults and Communities,PAYPAL  FASTKEYSERV,27/08/2015,9.5,Personal Needs of Clients - General,Advertising Services,GPC
Statement 18/08/2015 to 17/09/2015,Adults and Communities,PAYPAL  HERMESPARCE,06/09/2015,5.99,Other Equipment & Materials - General,Business Services-Not Elsewhere Classified,GPC
Statement 18/08/2015 to 17/09/2015,Adults and Communities,PAYPAL  HOLLANDBARR,14/09/2015,11.28,Provisions - General,"Miscellaneous Food Stores-Convenience Stores, Mark",GPC
Statement 18/08/2015 to 17/09/2015,Adults and Communities,PAYPAL  OCADORETAIL,05/09/2015,84.82,Other Equipment & Materials - General,"Miscellaneous Food Stores-Convenience Stores, Mark",GPC
Statement 18/08/2015 to 17/09/2015,Adults and Communities,PAYPAL  RZKTEXTILES,04/09/2015,5.95,Operational Equipment - General,Men's and Boy's Clothing and Furnishings Store,GPC
Statement 18/08/2015 to 17/09/2015,Adults and Communities,PAYPAL  SHILLABER58,10/09/2015,3.49,Other Expenditure - General,Miscellaneous and Specialty Retail Stores,GPC
Statement 18/08/2015 to 17/09/2015,Adults and Communities,PAYPAL  SUPERMARKET,16/09/2015,335.32,Stationery - General,"Accounting, Auditing, and Bookkeeping Services",GPC
Statement 18/08/2015 to 17/09/2015,Adults and Communities,PAYPAL  TRAINLINE,19/08/2015,59.17,Other Expenditure - General,Transportation Services-not elsewhere,GPC
Statement 18/08/2015 to 17/09/2015,Adults and Communities,PAYPAL  VTPLASTICS,02/09/2015,50,Display/Conservn/Exhibitions - Conservation,Miscellaneous and Specialty Retail Stores,GPC
Statement 18/08/2015 to 17/09/2015,Adults and Communities,PAYPAL  WHITECROFTE,07/09/2015,2.3,Other Equipment & Materials - General,Variety Stores,GPC
Statement 18/08/2015 to 17/09/2015,Adults and Communities,PILLINGS LOCK MARINA L,25/08/2015,7.5,Provisions - General,"Marinas, Marine Service/Suppliers",GPC
Statement 18/08/2015 to 17/09/2015,Adults and Communities,POST OFFICE COUNTER,18/08/2015,18.25,Other Expenditure - General,Postage Stamps,GPC
Statement 18/08/2015 to 17/09/2015,Adults and Communities,POST OFFICE COUNTER,25/08/2015,1.26,Other Expenditure - General,Postage Stamps,GPC
Statement 18/08/2015 to 17/09/2015,Adults and Communities,POST OFFICE COUNTER,04/09/2015,8.9,Other Expenditure - General,Postage Stamps,GPC
Statement 18/08/2015 to 17/09/2015,Adults and Communities,POST OFFICE COUNTER,26/08/2015,78.12,Postal Services - General,Postage Stamps,GPC
Statement 18/08/2015 to 17/09/2015,Adults and Communities,POST OFFICE COUNTER,26/08/2015,54,Postal Services - General,Postage Stamps,GPC
Statement 18/08/2015 to 17/09/2015,Adults and Communities,POST OFFICE COUNTER,10/09/2015,70.25,Postal Services - General,Postage Stamps,GPC
Statement 18/08/2015 to 17/09/2015,Adults and Communities,POUNDLAND LTD 1142,08/09/2015,10,Provisions - General,Discount Stores,GPC
Statement 18/08/2015 to 17/09/2015,Adults and Communities,POUNDSTRETCHER 292,28/08/2015,4.99,Provisions - General,"Drapery, Window Coverings, and Upholstery Stores",GPC
Statement 18/08/2015 to 17/09/2015,Adults and Communities,PP KTHOMSONART,25/08/2015,665,Materials - General,"Artist Supply Stores, Craft Shops",GPC
Statement 18/08/2015 to 17/09/2015,Adults and Communities,PREMIER INN 44536395,17/08/2015,321,Subsistence - General,PREMIER TRAVEL,GPC
Statement 18/08/2015 to 17/09/2015,Adults and Communities,PREMIER INN 44536395,21/08/2015,100,Subsistence - General,PREMIER TRAVEL,GPC
Statement 18/08/2015 to 17/09/2015,Adults and Communities,PREMIER INN44529750,02/09/2015,-17.5,Subsistence - General,PREMIER TRAVEL,GPC
Statement 18/08/2015 to 17/09/2015,Adults and Communities,PREMIER MOBILITY (UK),03/09/2015,66.1,Operational Equipment - General,Laboratory/Medical/Dental/Ophthalmic Hospital Equi,GPC
Statement 18/08/2015 to 17/09/2015,Adults and Communities,PRET A MANGER,04/09/2015,2.64,Subsistence - General,"Eating Places, Restaurants",GPC
Statement 18/08/2015 to 17/09/2015,Adults and Communities,ROSE AND RADISH,24/08/2015,50,Other Expenditure - General,Florists,GPC
Statement 18/08/2015 to 17/09/2015,Adults and Communities,RYMAN,26/08/2015,33.8,Stationery - General,"Stationery, Office, and School Supply Stores",GPC
Statement 18/08/2015 to 17/09/2015,Adults and Communities,RYMAN,02/09/2015,16.62,Stationery - General,"Stationery, Office, and School Supply Stores",GPC
Statement 18/08/2015 to 17/09/2015,Adults and Communities,RYMAN,09/09/2015,16.62,Stationery - General,"Stationery, Office, and School Supply Stores",GPC
Statement 18/08/2015 to 17/09/2015,Adults and Communities,SAINSBURYS LOCAL,20/08/2015,24.48,Provisions - General,"Grocery Stores, Supermarkets",GPC
Statement 18/08/2015 to 17/09/2015,Adults and Communities,SAINSBURYS LOCAL,21/08/2015,23.78,Provisions - General,"Grocery Stores, Supermarkets",GPC
Statement 18/08/2015 to 17/09/2015,Adults and Communities,SAINSBURYS LOCAL,06/09/2015,7.8,Provisions - General,"Grocery Stores, Supermarkets",GPC
Statement 18/08/2015 to 17/09/2015,Adults and Communities,SAINSBURYS LOCAL,10/09/2015,5,Provisions - General,"Grocery Stores, Supermarkets",GPC
Statement 18/08/2015 to 17/09/2015,Adults and Communities,SAINSBURYS LOCAL,14/09/2015,10.15,Provisions - General,"Grocery Stores, Supermarkets",GPC
Statement 18/08/2015 to 17/09/2015,Adults and Communities,SAINSBURY'S S/MKT,09/09/2015,29.95,Provisions - General,"Grocery Stores, Supermarkets",GPC
Statement 18/08/2015 to 17/09/2015,Adults and Communities,Sainsburys S/mkts,24/08/2015,5.6,Aids & Adaptations - Minor Adaptations,"Grocery Stores, Supermarkets",GPC
Statement 18/08/2015 to 17/09/2015,Adults and Communities,Sainsburys S/mkts,14/09/2015,28.87,Materials - General,"Grocery Stores, Supermarkets",GPC
Statement 18/08/2015 to 17/09/2015,Adults and Communities,SAINSBURYS S/MKTS,19/08/2015,5,Provisions - General,"Grocery Stores, Supermarkets",GPC
Statement 18/08/2015 to 17/09/2015,Adults and Communities,SAM INTERNATIONAL,18/08/2015,70.35,Stationery - General,"Stationary, Office Supplies, Printing and Writing",GPC
Statement 18/08/2015 to 17/09/2015,Adults and Communities,SCREWFIX DIRECT,26/08/2015,48.32,General Equipment - General,"Building Materials, Lumber Stores",GPC
Statement 18/08/2015 to 17/09/2015,Adults and Communities,SELECT PUBLISHER LTD,28/08/2015,4.17,Books - General,Miscellaneous Publishing and  Printing,GPC
Statement 18/08/2015 to 17/09/2015,Adults and Communities,SMBC  REVENUES - C,25/08/2015,15.5,Schools Agency staff - Teaching Staff,"Management, Consulting and Public Relations Servic",GPC
Statement 18/08/2015 to 17/09/2015,Adults and Communities,SMBC  REVENUES - C,08/09/2015,-11.2,Schools Agency staff - Teaching Staff,"Management, Consulting and Public Relations Servic",GPC
Statement 18/08/2015 to 17/09/2015,Adults and Communities,SMBC REVENUES - IN,02/09/2015,11.2,Schools Agency staff - Teaching Staff,"Management, Consulting and Public Relations Servic",GPC
Statement 18/08/2015 to 17/09/2015,Adults and Communities,SPARES SUPPLY COMPANY,02/09/2015,14.58,Other Services - General,Electrical Parts and Equipment,GPC
Statement 18/08/2015 to 17/09/2015,Adults and Communities,STARBUCKS,07/09/2015,7.44,Subsistence - General,Fast-Food Restaurants (Quick Payment Service Pilot,GPC
Statement 18/08/2015 to 17/09/2015,Adults and Communities,STARBUCKS,07/09/2015,9.85,Subsistence - General,Fast-Food Restaurants (Quick Payment Service Pilot,GPC
Statement 18/08/2015 to 17/09/2015,Adults and Communities,SUNNYSIDE GARDEN CENTRE,31/08/2015,33.46,Provisions - General,"Florists Supplies, Nursery Stock, and Flowers",GPC
Statement 18/08/2015 to 17/09/2015,Adults and Communities,SUNNYSIDE GARDEN CENTRE,31/08/2015,57.35,Provisions - General,"Florists Supplies, Nursery Stock, and Flowers",GPC
Statement 18/08/2015 to 17/09/2015,Adults and Communities,SURVEYMONKEY.COM,12/09/2015,21.67,Publicity/Marketing - General,Computer Network/Information Services,GPC
Statement 18/08/2015 to 17/09/2015,Adults and Communities,TALKTALK BUSINESS,20/08/2015,182.07,Telephones - General,Telecommunication Service Including Local and Long,GPC
Statement 18/08/2015 to 17/09/2015,Adults and Communities,TESCO STORE 2846,17/08/2015,21.79,Materials - General,"Grocery Stores, Supermarkets",GPC
Statement 18/08/2015 to 17/09/2015,Adults and Communities,TESCO STORES 2044,17/08/2015,27.33,Materials - General,"Grocery Stores, Supermarkets",GPC
Statement 18/08/2015 to 17/09/2015,Adults and Communities,TESCO STORES 5182,03/09/2015,20,Consultants & Specialists - General,"Grocery Stores, Supermarkets",GPC
Statement 18/08/2015 to 17/09/2015,Adults and Communities,TESCO STORES 5182,20/08/2015,190.29,Provisions - General,"Grocery Stores, Supermarkets",GPC
Statement 18/08/2015 to 17/09/2015,Adults and Communities,TESCO STORES 5182,24/08/2015,149.57,Provisions - General,"Grocery Stores, Supermarkets",GPC
Statement 18/08/2015 to 17/09/2015,Adults and Communities,TESCO STORES 5182,24/08/2015,90.56,Provisions - General,"Grocery Stores, Supermarkets",GPC
Statement 18/08/2015 to 17/09/2015,Adults and Communities,TESCO STORES 5182,28/08/2015,122.33,Provisions - General,"Grocery Stores, Supermarkets",GPC
Statement 18/08/2015 to 17/09/2015,Adults and Communities,TESCO STORES 5182,31/08/2015,179.69,Provisions - General,"Grocery Stores, Supermarkets",GPC
Statement 18/08/2015 to 17/09/2015,Adults and Communities,TESCO STORES 5182,04/09/2015,114.19,Provisions - General,"Grocery Stores, Supermarkets",GPC
Statement 18/08/2015 to 17/09/2015,Adults and Communities,TESCO STORES 5182,07/09/2015,126.61,Provisions - General,"Grocery Stores, Supermarkets",GPC
Statement 18/08/2015 to 17/09/2015,Adults and Communities,TESCO STORES 5182,11/09/2015,116.61,Provisions - General,"Grocery Stores, Supermarkets",GPC
Statement 18/08/2015 to 17/09/2015,Adults and Communities,TESCO STORES 5182,14/09/2015,66.82,Provisions - General,"Grocery Stores, Supermarkets",GPC
Statement 18/08/2015 to 17/09/2015,Adults and Communities,TESCO STORES 5182,14/09/2015,26.65,Provisions - General,"Grocery Stores, Supermarkets",GPC
Statement 18/08/2015 to 17/09/2015,Adults and Communities,TESCO STORES 6045,17/08/2015,6.2,Materials - General,"Grocery Stores, Supermarkets",GPC
Statement 18/08/2015 to 17/09/2015,Adults and Communities,TESCO-STORES 2846,28/08/2015,4.75,Materials - General,"Grocery Stores, Supermarkets",GPC
Statement 18/08/2015 to 17/09/2015,Adults and Communities,TESCO-STORES-6065,29/08/2015,11.77,Schools Agency staff - Support Staff,"Grocery Stores, Supermarkets",GPC
Statement 18/08/2015 to 17/09/2015,Adults and Communities,TEXACO EASTWOODS,25/08/2015,37,Other Expenditure - General,Service Stations (with or without Ancillary Servic,GPC
Statement 18/08/2015 to 17/09/2015,Adults and Communities,THE PRINTING PEOPLE LT,09/09/2015,100,Operational Equipment - General,Miscellaneous Publishing and  Printing,GPC
Statement 18/08/2015 to 17/09/2015,Adults and Communities,TITTLEMOUSE GIFTS,19/08/2015,10.9,Other Equipment & Materials - General,Miscellaneous House Furnishing Specialty Shops,GPC
Statement 18/08/2015 to 17/09/2015,Adults and Communities,TP COALVILLE,14/09/2015,28.99,Aids & Adaptations - Minor Adaptations,"Building Materials, Lumber Stores",GPC
Statement 18/08/2015 to 17/09/2015,Adults and Communities,TRAINLINE,04/09/2015,69.87,Casual/Essential - General,Passenger Railways,GPC
Statement 18/08/2015 to 17/09/2015,Adults and Communities,TRAINLINE,28/08/2015,120.36,Public Transport -  Staff - General,Passenger Railways,GPC
Statement 18/08/2015 to 17/09/2015,Adults and Communities,TRAINLINE,01/09/2015,29.83,Public Transport -  Staff - General,Passenger Railways,GPC
Statement 18/08/2015 to 17/09/2015,Adults and Communities,TRAINLINE,01/09/2015,12.49,Public Transport -  Staff - General,Passenger Railways,GPC
Statement 18/08/2015 to 17/09/2015,Adults and Communities,TVLICENSING.CO.UK,09/09/2015,145.5,General Equipment - General,"Management, Consulting and Public Relations Servic",GPC
Statement 18/08/2015 to 17/09/2015,Adults and Communities,W M MORRISONS CAFE,19/08/2015,4.68,Provisions - General,"Eating Places, Restaurants",GPC
Statement 18/08/2015 to 17/09/2015,Adults and Communities,W M MORRISONS CAFE,26/08/2015,11.98,Provisions - General,"Eating Places, Restaurants",GPC
Statement 18/08/2015 to 17/09/2015,Adults and Communities,W M MORRISONS CAFE,02/09/2015,4.68,Provisions - General,"Eating Places, Restaurants",GPC
Statement 18/08/2015 to 17/09/2015,Adults and Communities,W M MORRISONS CAFE,09/09/2015,4.68,Provisions - General,"Eating Places, Restaurants",GPC
Statement 18/08/2015 to 17/09/2015,Adults and Communities,W M MORRISONS CAFE,09/09/2015,5.99,Provisions - General,"Eating Places, Restaurants",GPC
Statement 18/08/2015 to 17/09/2015,Adults and Communities,WATERSTONES,18/08/2015,500,Materials - General,Book Stores,GPC
Statement 18/08/2015 to 17/09/2015,Adults and Communities,WICKES HINCKLEY,08/09/2015,6.63,General Equipment - General,"Building Materials, Lumber Stores",GPC
Statement 18/08/2015 to 17/09/2015,Adults and Communities,WILKO RETAIL LIMIT,04/09/2015,28,Furniture - General,Household Appliance Stores,GPC
Statement 18/08/2015 to 17/09/2015,Adults and Communities,WILKO RETAIL LIMIT,28/08/2015,25.41,General Equipment - General,Household Appliance Stores,GPC
Statement 18/08/2015 to 17/09/2015,Adults and Communities,WILKO RETAIL LIMIT,07/09/2015,9.9,General Equipment - General,Household Appliance Stores,GPC
Statement 18/08/2015 to 17/09/2015,Adults and Communities,WILKO RETAIL LIMIT,08/09/2015,5,Provisions - General,Household Appliance Stores,GPC
Statement 18/08/2015 to 17/09/2015,Adults and Communities,WILKO RETAIL LIMIT,26/08/2015,4.75,Stationery - General,Household Appliance Stores,GPC
Statement 18/08/2015 to 17/09/2015,Adults and Communities,WM MORRISON 054,21/08/2015,133.97,Materials - General,"Grocery Stores, Supermarkets",GPC
Statement 18/08/2015 to 17/09/2015,Adults and Communities,WM MORRISON 054,21/08/2015,18.48,Materials - General,"Grocery Stores, Supermarkets",GPC
Statement 18/08/2015 to 17/09/2015,Adults and Communities,WM MORRISON 054,22/08/2015,25,Materials - General,"Grocery Stores, Supermarkets",GPC
Statement 18/08/2015 to 17/09/2015,Adults and Communities,WM MORRISON 054,01/09/2015,5.37,Materials - General,"Grocery Stores, Supermarkets",GPC
Statement 18/08/2015 to 17/09/2015,Adults and Communities,WM MORRISON 054,05/09/2015,13.33,Materials - General,"Grocery Stores, Supermarkets",GPC
Statement 18/08/2015 to 17/09/2015,Adults and Communities,WM MORRISON 054,19/08/2015,108.98,Provisions - General,"Grocery Stores, Supermarkets",GPC
Statement 18/08/2015 to 17/09/2015,Adults and Communities,WM MORRISON 054,26/08/2015,110.84,Provisions - General,"Grocery Stores, Supermarkets",GPC
Statement 18/08/2015 to 17/09/2015,Adults and Communities,WM MORRISON 054,28/08/2015,32.87,Provisions - General,"Grocery Stores, Supermarkets",GPC
Statement 18/08/2015 to 17/09/2015,Adults and Communities,WM MORRISON 054,02/09/2015,86.21,Provisions - General,"Grocery Stores, Supermarkets",GPC
Statement 18/08/2015 to 17/09/2015,Adults and Communities,WM MORRISON 054,04/09/2015,117.75,Provisions - General,"Grocery Stores, Supermarkets",GPC
Statement 18/08/2015 to 17/09/2015,Adults and Communities,WM MORRISON 054,05/09/2015,20.78,Provisions - General,"Grocery Stores, Supermarkets",GPC
Statement 18/08/2015 to 17/09/2015,Adults and Communities,WM MORRISON 054,09/09/2015,122.51,Provisions - General,"Grocery Stores, Supermarkets",GPC
Statement 18/08/2015 to 17/09/2015,Adults and Communities,WM MORRISON 054,09/09/2015,38.49,Provisions - General,"Grocery Stores, Supermarkets",GPC
Statement 18/08/2015 to 17/09/2015,Adults and Communities,WM MORRISON 054,09/09/2015,155.65,Provisions - General,"Grocery Stores, Supermarkets",GPC
Statement 18/08/2015 to 17/09/2015,Adults and Communities,WM MORRISONS,20/08/2015,51.13,Other Expenditure - General,"Grocery Stores, Supermarkets",GPC
Statement 18/08/2015 to 17/09/2015,Adults and Communities,WM MORRISONS,24/08/2015,14.51,Other Expenditure - General,"Grocery Stores, Supermarkets",GPC
Statement 18/08/2015 to 17/09/2015,Adults and Communities,WM MORRISONS,27/08/2015,4,Provisions - General,"Grocery Stores, Supermarkets",GPC
Statement 18/08/2015 to 17/09/2015,Adults and Communities,WM MORRISONS,05/09/2015,28.78,Provisions - General,"Grocery Stores, Supermarkets",GPC
Statement 18/08/2015 to 17/09/2015,Adults and Communities,WM MORRISONS,11/09/2015,33.15,Provisions - General,"Grocery Stores, Supermarkets",GPC
Statement 18/08/2015 to 17/09/2015,Adults and Communities,WWW LITTLECRAFTYBUGS CO U,20/08/2015,13.45,Materials - General,"Artist Supply Stores, Craft Shops",GPC
Statement 18/08/2015 to 17/09/2015,Adults and Communities,WWW.BIRMINGHAM.GOV.UK,25/08/2015,12,Training Expenses - General,Schools and Educational Services-Not Elsewhere Cla,GPC
Statement 18/08/2015 to 17/09/2015,Adults and Communities,WWW.BIRMINGHAM.GOV.UK,25/08/2015,-10,Training Expenses - General,Schools and Educational Services-Not Elsewhere Cla,GPC
Statement 18/08/2015 to 17/09/2015,Adults and Communities,WWW.CARBOLICSOAP.COM,20/08/2015,11.07,Other Equipment & Materials - General,"Gift, Card, Novelty, and Souvenir Shops",GPC
Statement 18/08/2015 to 17/09/2015,Adults and Communities,WWW.COMPUTINGPLUS.CO.UK,28/08/2015,78.8,General Equipment - General,Computer and Data Processing Services,GPC
Statement 18/08/2015 to 17/09/2015,Adults and Communities,WWW.DER-ROEMER-SHOP.DE,11/09/2015,33.95,Other Equipment & Materials - General,Miscellaneous Personal Services-Not Elsewhere Clas,GPC
Statement 18/08/2015 to 17/09/2015,Adults and Communities,WWW.GREENSHOP.CO.UK,11/09/2015,9.3,Other Equipment & Materials - General,Miscellaneous and Specialty Retail Stores,GPC
Statement 18/08/2015 to 17/09/2015,Adults and Communities,WWW.IRONMONGERYDIRECT.,10/09/2015,25.74,General Equipment - General,"Glass, Paint, Wallpaper Stores",GPC
Statement 18/08/2015 to 17/09/2015,Adults and Communities,WWW.KIDS-PARTYSHOP.CO.,26/08/2015,33.99,Materials - General,Miscellaneous and Specialty Retail Stores,GPC
Statement 18/08/2015 to 17/09/2015,Adults and Communities,WWW.MOVEMENT2.CO.UK,09/09/2015,111.6,General Equipment - General,Laboratory/Medical/Dental/Ophthalmic Hospital Equi,GPC
Statement 18/08/2015 to 17/09/2015,Adults and Communities,WWW.OFFICEFURNITUREONL,28/08/2015,124,General Equipment - General,"Stationery, Office, and School Supply Stores",GPC
Statement 18/08/2015 to 17/09/2015,Adults and Communities,WWW.OFFICENEEDSDIRECT.,09/09/2015,36.23,Stationery - General,"Stationery, Office, and School Supply Stores",GPC
Statement 18/08/2015 to 17/09/2015,Adults and Communities,WWW.PLUMBERS-MATE.CO.U,27/08/2015,21.68,General Equipment - General,Plumbing and Heating Equipment,GPC
Statement 18/08/2015 to 17/09/2015,Adults and Communities,WWW.PLUMBERS-MATE.CO.U,27/08/2015,2.98,Postal Services - General,Plumbing and Heating Equipment,GPC
Statement 18/08/2015 to 17/09/2015,Adults and Communities,WWW.PROP4SHOWS.O.UK,14/09/2015,27.04,Other Equipment & Materials - General,Miscellaneous Apparel and Accessory Stores,GPC
Statement 18/08/2015 to 17/09/2015,Adults and Communities,WWW.ROYALMAIL.COM,21/08/2015,108,Postal Services - General,Postage Stamps,GPC
Statement 18/08/2015 to 17/09/2015,Adults and Communities,WWW.RYMAN.CO.UK,01/09/2015,4.99,Stationery - General,"Stationery, Office, and School Supply Stores",GPC
Statement 18/08/2015 to 17/09/2015,Adults and Communities,WWW.TTS-GROUPS.CO.UK,19/08/2015,18.98,Other Equipment & Materials - General,"Stationery, Office, and School Supply Stores",GPC
Statement 18/08/2015 to 17/09/2015,Adults and Communities,WWW.ZEN.CO.UK,01/09/2015,34.76,Telephones - General,Computer Network/Information Services,GPC
Statement 18/08/2015 to 17/09/2015,C&YPS-Non Delegated,A B WALLACE ENGRAVING,19/08/2015,39.99,Other Equipment & Materials - General,Miscellaneous and Specialty Retail Stores,GPC
Statement 18/08/2015 to 17/09/2015,C&YPS-Non Delegated,AA STATIONERS LEICESTER,18/08/2015,8.31,Stationery - General,"Stationery, Office, and School Supply Stores",GPC
Statement 18/08/2015 to 17/09/2015,C&YPS-Non Delegated,ALDI,17/08/2015,25.92,Materials - General,"Grocery Stores, Supermarkets",GPC
Statement 18/08/2015 to 17/09/2015,C&YPS-Non Delegated,ALDI,28/08/2015,16.79,Materials - General,"Grocery Stores, Supermarkets",GPC
Statement 18/08/2015 to 17/09/2015,C&YPS-Non Delegated,ALDI,12/09/2015,15.13,Materials - General,"Grocery Stores, Supermarkets",GPC
Statement 18/08/2015 to 17/09/2015,C&YPS-Non Delegated,ALDI,17/08/2015,60.69,Provisions - General,"Grocery Stores, Supermarkets",GPC
Statement 18/08/2015 to 17/09/2015,C&YPS-Non Delegated,ALDI,01/09/2015,107.75,Provisions - General,"Grocery Stores, Supermarkets",GPC
Statement 18/08/2015 to 17/09/2015,C&YPS-Non Delegated,ALDI,03/09/2015,53.02,Provisions - General,"Grocery Stores, Supermarkets",GPC
Statement 18/08/2015 to 17/09/2015,C&YPS-Non Delegated,ALDI,03/09/2015,3.72,Subsistence - General,"Grocery Stores, Supermarkets",GPC
Statement 18/08/2015 to 17/09/2015,C&YPS-Non Delegated,ALDI,05/09/2015,15.09,Subsistence - General,"Grocery Stores, Supermarkets",GPC
Statement 18/08/2015 to 17/09/2015,C&YPS-Non Delegated,Amazon Svcs Europe SAR,16/09/2015,57.57,Books - General,Book Stores,GPC
Statement 18/08/2015 to 17/09/2015,C&YPS-Non Delegated,Amazon Svcs Europe SAR,19/08/2015,3.85,Other Equipment & Materials - General,Book Stores,GPC
Statement 18/08/2015 to 17/09/2015,C&YPS-Non Delegated,Amazon Svcs Europe SAR,19/08/2015,25.99,Other Equipment & Materials - General,Book Stores,GPC
Statement 18/08/2015 to 17/09/2015,C&YPS-Non Delegated,Amazon Svcs Europe SAR,19/08/2015,14.9,Other Equipment & Materials - General,Book Stores,GPC
Statement 18/08/2015 to 17/09/2015,C&YPS-Non Delegated,Amazon UK Marketplace,04/09/2015,39.74,Books - General,Book Stores,GPC
Statement 18/08/2015 to 17/09/2015,C&YPS-Non Delegated,Amazon UK Marketplace,19/08/2015,34.95,IT Equipment - General,Miscellaneous and Specialty Retail Stores,GPC
Statement 18/08/2015 to 17/09/2015,C&YPS-Non Delegated,Amazon UK Marketplace,07/09/2015,39.99,Materials - General,Miscellaneous and Specialty Retail Stores,GPC
Statement 18/08/2015 to 17/09/2015,C&YPS-Non Delegated,Amazon UK Marketplace,08/09/2015,19.84,Materials - General,Miscellaneous and Specialty Retail Stores,GPC
Statement 18/08/2015 to 17/09/2015,C&YPS-Non Delegated,Amazon UK Marketplace,18/08/2015,4.19,Other Equipment & Materials - General,Book Stores,GPC
Statement 18/08/2015 to 17/09/2015,C&YPS-Non Delegated,Amazon UK Marketplace,19/08/2015,15.72,Other Equipment & Materials - General,Book Stores,GPC
Statement 18/08/2015 to 17/09/2015,C&YPS-Non Delegated,Amazon UK Marketplace,19/08/2015,10.65,Other Equipment & Materials - General,Miscellaneous and Specialty Retail Stores,GPC
Statement 18/08/2015 to 17/09/2015,C&YPS-Non Delegated,Amazon UK Marketplace,19/08/2015,9.97,Other Equipment & Materials - General,Miscellaneous and Specialty Retail Stores,GPC
Statement 18/08/2015 to 17/09/2015,C&YPS-Non Delegated,Amazon UK Marketplace,19/08/2015,29.85,Other Equipment & Materials - General,Miscellaneous and Specialty Retail Stores,GPC
Statement 18/08/2015 to 17/09/2015,C&YPS-Non Delegated,Amazon UK Marketplace,19/08/2015,2.7,Other Equipment & Materials - General,Miscellaneous and Specialty Retail Stores,GPC
Statement 18/08/2015 to 17/09/2015,C&YPS-Non Delegated,Amazon UK Marketplace,20/08/2015,14.85,Other Equipment & Materials - General,Book Stores,GPC
Statement 18/08/2015 to 17/09/2015,C&YPS-Non Delegated,Amazon UK Marketplace,24/08/2015,24.99,Other Equipment & Materials - General,Miscellaneous and Specialty Retail Stores,GPC
Statement 18/08/2015 to 17/09/2015,C&YPS-Non Delegated,Amazon UK Marketplace,02/09/2015,24.77,Other Equipment & Materials - General,Miscellaneous and Specialty Retail Stores,GPC
Statement 18/08/2015 to 17/09/2015,C&YPS-Non Delegated,Amazon UK Marketplace,04/09/2015,35.97,Other Equipment & Materials - General,Miscellaneous and Specialty Retail Stores,GPC
Statement 18/08/2015 to 17/09/2015,C&YPS-Non Delegated,Amazon UK Marketplace,04/09/2015,5.62,Other Equipment & Materials - General,Miscellaneous and Specialty Retail Stores,GPC
Statement 18/08/2015 to 17/09/2015,C&YPS-Non Delegated,Amazon UK Marketplace,28/08/2015,34.99,Other Expenditure - General,Book Stores,GPC
Statement 18/08/2015 to 17/09/2015,C&YPS-Non Delegated,Amazon UK Marketplace,31/08/2015,5.65,Stationery - General,Miscellaneous and Specialty Retail Stores,GPC
Statement 18/08/2015 to 17/09/2015,C&YPS-Non Delegated,Amazon UK Retail,19/08/2015,64.53,Materials - General,Direct Marketers - Other,GPC
Statement 18/08/2015 to 17/09/2015,C&YPS-Non Delegated,Amazon UK Retail,04/09/2015,42.92,Other Equipment & Materials - General,Direct Marketers - Other,GPC
Statement 18/08/2015 to 17/09/2015,C&YPS-Non Delegated,Amazon UK Retail,04/09/2015,49.91,Other Equipment & Materials - General,Direct Marketers - Other,GPC
Statement 18/08/2015 to 17/09/2015,C&YPS-Non Delegated,Amazon UK Retail,09/09/2015,9.09,Other Equipment & Materials - General,Direct Marketers - Other,GPC
Statement 18/08/2015 to 17/09/2015,C&YPS-Non Delegated,Amazon UK Retail,19/08/2015,45,Other Expenditure - General,Direct Marketers - Other,GPC
Statement 18/08/2015 to 17/09/2015,C&YPS-Non Delegated,Amazon UK Retail,06/09/2015,39.18,Stationery - General,Direct Marketers - Other,GPC
Statement 18/08/2015 to 17/09/2015,C&YPS-Non Delegated,AMFBOWLING.CO.UK,20/08/2015,22.6,Public Transport -  Staff - General,Bowling Alleys,GPC
Statement 18/08/2015 to 17/09/2015,C&YPS-Non Delegated,ARGOS DIRECT,26/08/2015,287.94,Materials - General,Discount Stores,GPC
Statement 18/08/2015 to 17/09/2015,C&YPS-Non Delegated,ARGOS LTD,18/08/2015,221.25,Materials - General,Discount Stores,GPC
Statement 18/08/2015 to 17/09/2015,C&YPS-Non Delegated,ARGOS LTD,18/08/2015,151.44,Materials - General,Discount Stores,GPC
Statement 18/08/2015 to 17/09/2015,C&YPS-Non Delegated,ARGOS LTD,20/08/2015,122.49,Materials - General,Discount Stores,GPC
Statement 18/08/2015 to 17/09/2015,C&YPS-Non Delegated,ARGOS LTD,24/08/2015,189.44,Materials - General,Discount Stores,GPC
Statement 18/08/2015 to 17/09/2015,C&YPS-Non Delegated,ARGOS LTD,24/08/2015,33.24,Materials - General,Discount Stores,GPC
Statement 18/08/2015 to 17/09/2015,C&YPS-Non Delegated,ARGOS LTD,02/09/2015,35.12,Materials - General,Discount Stores,GPC
Statement 18/08/2015 to 17/09/2015,C&YPS-Non Delegated,ARGOS LTD,02/09/2015,-7.59,Materials - General,Discount Stores,GPC
Statement 18/08/2015 to 17/09/2015,C&YPS-Non Delegated,ARGOS LTD,02/09/2015,9.49,Materials - General,Discount Stores,GPC
Statement 18/08/2015 to 17/09/2015,C&YPS-Non Delegated,ARGOS LTD,24/08/2015,44.99,Provisions - General,Discount Stores,GPC
Statement 18/08/2015 to 17/09/2015,C&YPS-Non Delegated,ARGOS RETAIL GROUP,27/08/2015,149.99,Materials - General,Discount Stores,GPC
Statement 18/08/2015 to 17/09/2015,C&YPS-Non Delegated,ARGOS RETAIL GROUP,27/08/2015,173.94,Materials - General,Discount Stores,GPC
Statement 18/08/2015 to 17/09/2015,C&YPS-Non Delegated,ARGOS RETAIL GROUP,01/09/2015,29.99,Materials - General,Discount Stores,GPC
Statement 18/08/2015 to 17/09/2015,C&YPS-Non Delegated,ASDA STORES 4477,27/08/2015,10.1,Provisions - General,"Grocery Stores, Supermarkets",GPC
Statement 18/08/2015 to 17/09/2015,C&YPS-Non Delegated,ASDA STORES 4533,18/08/2015,25.79,Other Equipment & Materials - General,"Grocery Stores, Supermarkets",GPC
Statement 18/08/2015 to 17/09/2015,C&YPS-Non Delegated,ASDA STORES 4798,17/08/2015,28.28,Other Expenditure - General,"Grocery Stores, Supermarkets",GPC
Statement 18/08/2015 to 17/09/2015,C&YPS-Non Delegated,ASDA STORES 4798,14/09/2015,3.9,Other Expenditure - General,"Grocery Stores, Supermarkets",GPC
Statement 18/08/2015 to 17/09/2015,C&YPS-Non Delegated,ASDA SUPERSTORE,26/08/2015,10,Personal Needs of Clients - Clothing,"Grocery Stores, Supermarkets",GPC
Statement 18/08/2015 to 17/09/2015,C&YPS-Non Delegated,ASDA SUPERSTORE,17/08/2015,69.68,Provisions - General,"Grocery Stores, Supermarkets",GPC
Statement 18/08/2015 to 17/09/2015,C&YPS-Non Delegated,ASDA SUPERSTORE,18/08/2015,103.26,Provisions - General,"Grocery Stores, Supermarkets",GPC
Statement 18/08/2015 to 17/09/2015,C&YPS-Non Delegated,ASDA SUPERSTORE,24/08/2015,2.4,Provisions - General,"Grocery Stores, Supermarkets",GPC
Statement 18/08/2015 to 17/09/2015,C&YPS-Non Delegated,ASDA SUPERSTORE,24/08/2015,91.42,Provisions - General,"Grocery Stores, Supermarkets",GPC
Statement 18/08/2015 to 17/09/2015,C&YPS-Non Delegated,ASDA SUPERSTORE,01/09/2015,118.12,Provisions - General,"Grocery Stores, Supermarkets",GPC
Statement 18/08/2015 to 17/09/2015,C&YPS-Non Delegated,ASDA SUPERSTORE,07/09/2015,135.88,Provisions - General,"Grocery Stores, Supermarkets",GPC
Statement 18/08/2015 to 17/09/2015,C&YPS-Non Delegated,ASDA SUPERSTORE,07/09/2015,145.14,Provisions - General,"Grocery Stores, Supermarkets",GPC
Statement 18/08/2015 to 17/09/2015,C&YPS-Non Delegated,ASDA SUPERSTORE,14/09/2015,159.36,Provisions - General,"Grocery Stores, Supermarkets",GPC
Statement 18/08/2015 to 17/09/2015,C&YPS-Non Delegated,ASDA SUPERSTORE,17/08/2015,9.75,Subsistence - General,"Grocery Stores, Supermarkets",GPC
Statement 18/08/2015 to 17/09/2015,C&YPS-Non Delegated,ASDA SUPERSTORE,11/09/2015,32.59,Subsistence - General,"Grocery Stores, Supermarkets",GPC
Statement 18/08/2015 to 17/09/2015,C&YPS-Non Delegated,B & Q,19/08/2015,33.34,Materials - General,"Building Materials, Lumber Stores",GPC
Statement 18/08/2015 to 17/09/2015,C&YPS-Non Delegated,B & Q,24/08/2015,47.98,Other Expenditure - General,"Building Materials, Lumber Stores",GPC
Statement 18/08/2015 to 17/09/2015,C&YPS-Non Delegated,B & Q,25/08/2015,6.31,Other Expenditure - General,"Building Materials, Lumber Stores",GPC
Statement 18/08/2015 to 17/09/2015,C&YPS-Non Delegated,B & Q,25/08/2015,3.8,Other Expenditure - General,"Building Materials, Lumber Stores",GPC
Statement 18/08/2015 to 17/09/2015,C&YPS-Non Delegated,B & Q,25/08/2015,-4.82,Other Expenditure - General,"Building Materials, Lumber Stores",GPC
Statement 18/08/2015 to 17/09/2015,C&YPS-Non Delegated,B & Q,25/08/2015,-3.8,Other Expenditure - General,"Building Materials, Lumber Stores",GPC
Statement 18/08/2015 to 17/09/2015,C&YPS-Non Delegated,B&M RETAIL LTD,25/08/2015,5.98,General Equipment - General,Discount Stores,GPC
Statement 18/08/2015 to 17/09/2015,C&YPS-Non Delegated,B&M RETAIL LTD,27/08/2015,10.43,Personal Needs of Clients - General,Discount Stores,GPC
Statement 18/08/2015 to 17/09/2015,C&YPS-Non Delegated,BIFFA WASTE,18/08/2015,309.39,Contract Cleaning - Refuse Removal,"Utilities-Electric, Gas, Sanitary, Water",GPC
Statement 18/08/2015 to 17/09/2015,C&YPS-Non Delegated,BOSWORTH BATTLEFIELD,20/08/2015,19,Training Expenses - General,"Colleges, Universities, Professional Schools, and",GPC
Statement 18/08/2015 to 17/09/2015,C&YPS-Non Delegated,BRANSTONS SF CONNECT,20/08/2015,3.99,Other Equipment & Materials - General,Service Stations (with or without Ancillary Servic,GPC
Statement 18/08/2015 to 17/09/2015,C&YPS-Non Delegated,BT BILL PAYMENT 1,19/08/2015,49.89,Telephones - General,Telecommunication Equipment Including Telephone Sa,GPC
Statement 18/08/2015 to 17/09/2015,C&YPS-Non Delegated,BT BILL PAYMENT 1,03/09/2015,96,Telephones - General,Telecommunication Equipment Including Telephone Sa,GPC
Statement 18/08/2015 to 17/09/2015,C&YPS-Non Delegated,BT BILL PAYMENT 2,28/08/2015,49.89,R & M of Buildings - General,Telecommunication Equipment Including Telephone Sa,GPC
Statement 18/08/2015 to 17/09/2015,C&YPS-Non Delegated,BT BILL PAYMENT 2,28/08/2015,74.97,R & M of Buildings - General,Telecommunication Equipment Including Telephone Sa,GPC
Statement 18/08/2015 to 17/09/2015,C&YPS-Non Delegated,BT BILL PAYMENT 2,28/08/2015,153.67,R & M of Buildings - General,Telecommunication Equipment Including Telephone Sa,GPC
Statement 18/08/2015 to 17/09/2015,C&YPS-Non Delegated,BT BILL PAYMENT 2,19/08/2015,49.89,Telephones - General,Telecommunication Equipment Including Telephone Sa,GPC
Statement 18/08/2015 to 17/09/2015,C&YPS-Non Delegated,BT BILL PAYMENT 2,02/09/2015,108,Telephones - General,Telecommunication Equipment Including Telephone Sa,GPC
Statement 18/08/2015 to 17/09/2015,C&YPS-Non Delegated,CENTRAL ENG COOP,28/08/2015,1.39,Other Equipment & Materials - General,Department Stores,GPC
Statement 18/08/2015 to 17/09/2015,C&YPS-Non Delegated,CENTRAL ENG COOP,01/09/2015,5.99,Other Equipment & Materials - General,Department Stores,GPC
Statement 18/08/2015 to 17/09/2015,C&YPS-Non Delegated,CENTRAL ENG COOP,09/09/2015,13.77,Other Equipment & Materials - General,Department Stores,GPC
Statement 18/08/2015 to 17/09/2015,C&YPS-Non Delegated,CENTRAL ENG COOP,01/09/2015,3.55,Subsistence - General,Department Stores,GPC
Statement 18/08/2015 to 17/09/2015,C&YPS-Non Delegated,CENTRAL ENG COOP,08/09/2015,3,Subsistence - General,Department Stores,GPC
Statement 18/08/2015 to 17/09/2015,C&YPS-Non Delegated,CENTRAL ENG COOP,15/09/2015,28.74,Subsistence - General,Department Stores,GPC
Statement 18/08/2015 to 17/09/2015,C&YPS-Non Delegated,CHURCHILL CATERING LTD,20/08/2015,6.65,Subsistence - General,Fast-Food Restaurants (Quick Payment Service Pilot,GPC
Statement 18/08/2015 to 17/09/2015,C&YPS-Non Delegated,CHURCHILL CATERING LTD,20/08/2015,13.5,Subsistence - General,Fast-Food Restaurants (Quick Payment Service Pilot,GPC
Statement 18/08/2015 to 17/09/2015,C&YPS-Non Delegated,CLACKMANNANSHIRE COUNCIL,20/08/2015,15.65,Other Transfer Payments - Section 23 Grants,Government Services-Not Elsewhere Classified,GPC
Statement 18/08/2015 to 17/09/2015,C&YPS-Non Delegated,COSTA COFFEE,01/09/2015,6.75,Other Expenditure - General,Fast-Food Restaurants (Quick Payment Service Pilot,GPC
Statement 18/08/2015 to 17/09/2015,C&YPS-Non Delegated,COSTA COFFEE,01/09/2015,5.75,Subsistence - General,Fast-Food Restaurants (Quick Payment Service Pilot,GPC
Statement 18/08/2015 to 17/09/2015,C&YPS-Non Delegated,CROSS COUNTRY,08/09/2015,16.7,Casual/Essential - General,Passenger Railways,GPC
Statement 18/08/2015 to 17/09/2015,C&YPS-Non Delegated,CURRYS ONLINE,27/08/2015,149.99,Materials - General,"RADIO, TELEVISION, AND STEREO STORES (ELECTRONIC STORES)",GPC
Statement 18/08/2015 to 17/09/2015,C&YPS-Non Delegated,D I TRADING LTD,11/09/2015,99.6,Schools Agency staff - Teaching Staff,Professional Services-Not Elsewhere Classified,GPC
Statement 18/08/2015 to 17/09/2015,C&YPS-Non Delegated,DB AUTOMATICS LTD,15/09/2015,342,Materials - General,Household Appliance Stores,GPC
Statement 18/08/2015 to 17/09/2015,C&YPS-Non Delegated,DERBY C CNCL TEL PAYME,20/08/2015,20.36,Other Transfer Payments - Section 23 Grants,Government Services-Not Elsewhere Classified,GPC
Statement 18/08/2015 to 17/09/2015,C&YPS-Non Delegated,DISCLOSURE SCOT,04/09/2015,25,Other Equipment & Materials - General,Government Services-Not Elsewhere Classified,GPC
Statement 18/08/2015 to 17/09/2015,C&YPS-Non Delegated,DISCLOSURE SCOT,03/09/2015,25,Other Expenditure - General,Government Services-Not Elsewhere Classified,GPC
Statement 18/08/2015 to 17/09/2015,C&YPS-Non Delegated,DOMINOS WIGSTON,27/08/2015,25.41,Other Equipment & Materials - General,"Eating Places, Restaurants",GPC
Statement 18/08/2015 to 17/09/2015,C&YPS-Non Delegated,DUNELM (SOFT FURNISHIN,16/09/2015,67.96,Materials - General,"Drapery, Window Coverings, and Upholstery Stores",GPC
Statement 18/08/2015 to 17/09/2015,C&YPS-Non Delegated,EAST MIDLANDS MARKET HAR,25/08/2015,6.5,Casual/Essential - General,Automobile Parking Lots and Garages,GPC
Statement 18/08/2015 to 17/09/2015,C&YPS-Non Delegated,EAST MIDLANDS TRAI,25/08/2015,50.5,Casual/Essential - General,Passenger Railways,GPC
Statement 18/08/2015 to 17/09/2015,C&YPS-Non Delegated,EAST MIDLANDS TRAI,15/09/2015,50.5,Casual/Essential - General,Passenger Railways,GPC
Statement 18/08/2015 to 17/09/2015,C&YPS-Non Delegated,EASTMIDLANDSTRAINS,15/09/2015,121.5,Casual/Essential - General,Passenger Railways,GPC
Statement 18/08/2015 to 17/09/2015,C&YPS-Non Delegated,EDITION PETERS,04/09/2015,3.2,Stationery - General,"Music Stores-Musical Instruments, Pianos, Sheet Mu",GPC
Statement 18/08/2015 to 17/09/2015,C&YPS-Non Delegated,EMMAUS LEICESTERSHIRE,17/08/2015,90,Subsistence - General,Charitable and Social Service Organizations,GPC
Statement 18/08/2015 to 17/09/2015,C&YPS-Non Delegated,ESPO,24/08/2015,-49.85,Stationery - General,Government Services-Not Elsewhere Classified,GPC
Statement 18/08/2015 to 17/09/2015,C&YPS-Non Delegated,ESPO,27/08/2015,17.5,Stationery - General,Government Services-Not Elsewhere Classified,GPC
Statement 18/08/2015 to 17/09/2015,C&YPS-Non Delegated,FOREIGN EXCHANGE FEE,21/08/2015,3.14,Stationery - General,Misc-Unknown,GPC
Statement 18/08/2015 to 17/09/2015,C&YPS-Non Delegated,FOREIGN EXCHANGE FEE,21/08/2015,4.09,Stationery - General,Misc-Unknown,GPC
Statement 18/08/2015 to 17/09/2015,C&YPS-Non Delegated,FOREIGN EXCHANGE FEE,24/08/2015,5.85,Stationery - General,Misc-Unknown,GPC
Statement 18/08/2015 to 17/09/2015,C&YPS-Non Delegated,FOREIGN EXCHANGE FEE,17/09/2015,2.13,Stationery - General,Misc-Unknown,GPC
Statement 18/08/2015 to 17/09/2015,C&YPS-Non Delegated,FUSION SOAR VALLEY LEI,19/08/2015,10.9,Other Equipment & Materials - General,"Membership Clubs (Sports, Recreation, Athletic), C",GPC
Statement 18/08/2015 to 17/09/2015,C&YPS-Non Delegated,GRO HM PASSPORT OFFICE,11/09/2015,18.5,Other Expenditure - General,Government Services-Not Elsewhere Classified,GPC
Statement 18/08/2015 to 17/09/2015,C&YPS-Non Delegated,HALFORDS 0375,24/08/2015,10,General Equipment - General,Bicycle Shops-Sales and Service,GPC
Statement 18/08/2015 to 17/09/2015,C&YPS-Non Delegated,HINCKLEY LEISURE CENTR,25/08/2015,15,Public Transport -  Staff - General,"Membership Clubs (Sports, Recreation, Athletic), C",GPC
Statement 18/08/2015 to 17/09/2015,C&YPS-Non Delegated,HOTELS COM124981629801,15/09/2015,152,Casual/Essential - General,Travel Agencies,GPC
Statement 18/08/2015 to 17/09/2015,C&YPS-Non Delegated,ICELAND,03/09/2015,22.38,Provisions - General,"Grocery Stores, Supermarkets",GPC
Statement 18/08/2015 to 17/09/2015,C&YPS-Non Delegated,IKEA,04/09/2015,45.83,Other Equipment & Materials - General,Miscellaneous House Furnishing Specialty Shops,GPC
Statement 18/08/2015 to 17/09/2015,C&YPS-Non Delegated,IKEA,04/09/2015,150.42,Other Equipment & Materials - General,Miscellaneous House Furnishing Specialty Shops,GPC
Statement 18/08/2015 to 17/09/2015,C&YPS-Non Delegated,IKEA ONLINE,26/08/2015,109.17,Other Equipment & Materials - General,Miscellaneous House Furnishing Specialty Shops,GPC
Statement 18/08/2015 to 17/09/2015,C&YPS-Non Delegated,INSURE GOLF LTD,25/08/2015,5,Other Equipment & Materials - General,Golf Courses-Public,GPC
Statement 18/08/2015 to 17/09/2015,C&YPS-Non Delegated,INSURE GOLF LTD,26/08/2015,12.5,Other Equipment & Materials - General,Golf Courses-Public,GPC
Statement 18/08/2015 to 17/09/2015,C&YPS-Non Delegated,INSURE GOLF LTD,09/09/2015,10,Other Equipment & Materials - General,Golf Courses-Public,GPC
Statement 18/08/2015 to 17/09/2015,C&YPS-Non Delegated,ITUNES.COM/BILL,01/09/2015,66.66,Materials - General,Record Shops,GPC
Statement 18/08/2015 to 17/09/2015,C&YPS-Non Delegated,J W PEPPER AND SON INC,19/08/2015,114.07,Stationery - General,"Music Stores-Musical Instruments, Pianos, Sheet Mu",GPC
Statement 18/08/2015 to 17/09/2015,C&YPS-Non Delegated,J W PEPPER AND SON INC,19/08/2015,148.85,Stationery - General,"Music Stores-Musical Instruments, Pianos, Sheet Mu",GPC
Statement 18/08/2015 to 17/09/2015,C&YPS-Non Delegated,J W PEPPER AND SON INC,20/08/2015,212.76,Stationery - General,"Music Stores-Musical Instruments, Pianos, Sheet Mu",GPC
Statement 18/08/2015 to 17/09/2015,C&YPS-Non Delegated,J W PEPPER AND SON INC,16/09/2015,77.28,Stationery - General,"Music Stores-Musical Instruments, Pianos, Sheet Mu",GPC
Statement 18/08/2015 to 17/09/2015,C&YPS-Non Delegated,KFC - LOUGHBOROUGH,27/08/2015,5.98,Other Expenditure - General,Fast-Food Restaurants (Quick Payment Service Pilot,GPC
Statement 18/08/2015 to 17/09/2015,C&YPS-Non Delegated,KFC-FOSSE PARK,11/09/2015,8.95,Subsistence - General,Fast-Food Restaurants (Quick Payment Service Pilot,GPC
Statement 18/08/2015 to 17/09/2015,C&YPS-Non Delegated,LCC CATERING SERVICES,07/09/2015,3.78,Postal Services - General,Government Services-Not Elsewhere Classified,GPC
Statement 18/08/2015 to 17/09/2015,C&YPS-Non Delegated,LEIC CITY COUNCIL,21/08/2015,57,Other Equipment & Materials - General,Government Services-Not Elsewhere Classified,GPC
Statement 18/08/2015 to 17/09/2015,C&YPS-Non Delegated,LEIC CITY COUNCIL,18/08/2015,23,Other Expenditure - General,Government Services-Not Elsewhere Classified,GPC
Statement 18/08/2015 to 17/09/2015,C&YPS-Non Delegated,LEIC CITY COUNCIL,18/08/2015,23,Other Expenditure - General,Government Services-Not Elsewhere Classified,GPC
Statement 18/08/2015 to 17/09/2015,C&YPS-Non Delegated,LEIC CITY COUNCIL,24/08/2015,13,Other Expenditure - General,Government Services-Not Elsewhere Classified,GPC
Statement 18/08/2015 to 17/09/2015,C&YPS-Non Delegated,LEIC CITY COUNCIL,03/09/2015,23,Other Expenditure - General,Government Services-Not Elsewhere Classified,GPC
Statement 18/08/2015 to 17/09/2015,C&YPS-Non Delegated,LEIC CITY COUNCIL,03/09/2015,13,Other Expenditure - General,Government Services-Not Elsewhere Classified,GPC
Statement 18/08/2015 to 17/09/2015,C&YPS-Non Delegated,LEIC CITY COUNCIL,19/08/2015,13,Other Transfer Payments - Section 23 Grants,Government Services-Not Elsewhere Classified,GPC
Statement 18/08/2015 to 17/09/2015,C&YPS-Non Delegated,LEIC CITY COUNCIL,25/08/2015,13,Other Transfer Payments - Section 23 Grants,Government Services-Not Elsewhere Classified,GPC
Statement 18/08/2015 to 17/09/2015,C&YPS-Non Delegated,LEIC CITY COUNCIL,25/08/2015,13,Other Transfer Payments - Section 23 Grants,Government Services-Not Elsewhere Classified,GPC
Statement 18/08/2015 to 17/09/2015,C&YPS-Non Delegated,LEIC CITY COUNCIL,25/08/2015,13,Other Transfer Payments - Section 23 Grants,Government Services-Not Elsewhere Classified,GPC
Statement 18/08/2015 to 17/09/2015,C&YPS-Non Delegated,LEIC CITY COUNCIL,27/08/2015,13,Other Transfer Payments - Section 23 Grants,Government Services-Not Elsewhere Classified,GPC
Statement 18/08/2015 to 17/09/2015,C&YPS-Non Delegated,LEICESTERSHIRE C COUNC,18/08/2015,11,Other Expenditure - General,Government Services-Not Elsewhere Classified,GPC
Statement 18/08/2015 to 17/09/2015,C&YPS-Non Delegated,LEICESTERSHIRE C COUNC,03/09/2015,11,Other Expenditure - General,Government Services-Not Elsewhere Classified,GPC
Statement 18/08/2015 to 17/09/2015,C&YPS-Non Delegated,LIDL UK,24/08/2015,72.95,Provisions - General,"Grocery Stores, Supermarkets",GPC
Statement 18/08/2015 to 17/09/2015,C&YPS-Non Delegated,LIDL UK,27/08/2015,91.6,Provisions - General,"Grocery Stores, Supermarkets",GPC
Statement 18/08/2015 to 17/09/2015,C&YPS-Non Delegated,LIDL UK,05/09/2015,73.11,Provisions - General,"Grocery Stores, Supermarkets",GPC
Statement 18/08/2015 to 17/09/2015,C&YPS-Non Delegated,LIDL UK,10/09/2015,28.54,Provisions - General,"Grocery Stores, Supermarkets",GPC
Statement 18/08/2015 to 17/09/2015,C&YPS-Non Delegated,LIDL UK,13/09/2015,58.35,Provisions - General,"Grocery Stores, Supermarkets",GPC
Statement 18/08/2015 to 17/09/2015,C&YPS-Non Delegated,LINKEDIN-3087848713,02/09/2015,227.94,Other Expenditure - General,Continuity/Subscription Merchants,GPC
Statement 18/08/2015 to 17/09/2015,C&YPS-Non Delegated,LUCKY SUPERMARKET 2308,20/08/2015,10.5,Subsistence - General,"Grocery Stores, Supermarkets",GPC
Statement 18/08/2015 to 17/09/2015,C&YPS-Non Delegated,LUTTERWORTH CYCLE CENT,19/08/2015,11,Other Equipment & Materials - General,Bicycle Shops-Sales and Service,GPC
Statement 18/08/2015 to 17/09/2015,C&YPS-Non Delegated,M&S SIMPLY FOOD - SSP,25/08/2015,9.46,Provisions - General,"Miscellaneous Food Stores-Convenience Stores, Mark",GPC
Statement 18/08/2015 to 17/09/2015,C&YPS-Non Delegated,M&S SIMPLY FOOD - SSP,15/09/2015,3.5,Provisions - General,"Miscellaneous Food Stores-Convenience Stores, Mark",GPC
Statement 18/08/2015 to 17/09/2015,C&YPS-Non Delegated,MCDONALDS,10/09/2015,1.16,Other Equipment & Materials - General,"Eating Places, Restaurants",GPC
Statement 18/08/2015 to 17/09/2015,C&YPS-Non Delegated,MCDONALDS,10/09/2015,3.65,Other Equipment & Materials - General,"Eating Places, Restaurants",GPC
Statement 18/08/2015 to 17/09/2015,C&YPS-Non Delegated,MCDONALDS,02/09/2015,5.37,Other Expenditure - General,Fast-Food Restaurants (Quick Payment Service Pilot,GPC
Statement 18/08/2015 to 17/09/2015,C&YPS-Non Delegated,MCDONALDS,20/08/2015,11.49,Provisions - General,"Eating Places, Restaurants",GPC
Statement 18/08/2015 to 17/09/2015,C&YPS-Non Delegated,MCDONALDS,27/08/2015,6.47,Subsistence - General,"Eating Places, Restaurants",GPC
Statement 18/08/2015 to 17/09/2015,C&YPS-Non Delegated,MCFC INTERNET,11/09/2015,41.67,Personal Needs of Clients - Holidays & Outings,"Membership Clubs (Sports, Recreation, Athletic), C",GPC
Statement 18/08/2015 to 17/09/2015,C&YPS-Non Delegated,NET CLOTHING LTD,24/08/2015,33,Personal Needs of Clients - Clothing,Men's and Boy's Clothing and Furnishings Store,GPC
Statement 18/08/2015 to 17/09/2015,C&YPS-Non Delegated,NOTTINGHAM CITY CO,15/09/2015,20,Communications Equipment - General,Computer Network/Information Services,GPC
Statement 18/08/2015 to 17/09/2015,C&YPS-Non Delegated,NOTTINGHAM CITY CO,15/09/2015,20,Communications Equipment - General,Computer Network/Information Services,GPC
Statement 18/08/2015 to 17/09/2015,C&YPS-Non Delegated,O2 RETAIL,11/09/2015,29.99,Communications Equipment - General,Telecommunication Equipment Including Telephone Sa,GPC
Statement 18/08/2015 to 17/09/2015,C&YPS-Non Delegated,PAYPAL  FIVESTARSTO,01/09/2015,5.83,Other Equipment & Materials - General,Variety Stores,GPC
Statement 18/08/2015 to 17/09/2015,C&YPS-Non Delegated,PAYPAL  MINYUDAN,01/09/2015,4.44,Other Equipment & Materials - General,Children's and Infants' Wear Stores,GPC
Statement 18/08/2015 to 17/09/2015,C&YPS-Non Delegated,PAYPAL  MONSTERBOOK,26/08/2015,2.99,Other Equipment & Materials - General,Book Stores,GPC
Statement 18/08/2015 to 17/09/2015,C&YPS-Non Delegated,PAYPAL  NAMES4U,16/08/2015,4.9,Other Expenditure - General,Family Clothing Stores,GPC
Statement 18/08/2015 to 17/09/2015,C&YPS-Non Delegated,PAYPAL  PILOTIMPORT,01/09/2015,14.99,Other Equipment & Materials - General,Business Services-Not Elsewhere Classified,GPC
Statement 18/08/2015 to 17/09/2015,C&YPS-Non Delegated,PAYPAL  QUICKDRAWSU,25/08/2015,8.96,Other Equipment & Materials - General,"Artist Supply Stores, Craft Shops",GPC
Statement 18/08/2015 to 17/09/2015,C&YPS-Non Delegated,PAYPAL  STELLAB,25/08/2015,7.57,Other Equipment & Materials - General,Family Clothing Stores,GPC
Statement 18/08/2015 to 17/09/2015,C&YPS-Non Delegated,PAYPAL  YOUNGCREATO,01/09/2015,11.25,Other Equipment & Materials - General,"Artist Supply Stores, Craft Shops",GPC
Statement 18/08/2015 to 17/09/2015,C&YPS-Non Delegated,POUNDLAND LTD 1182,10/09/2015,5,Materials - General,Discount Stores,GPC
Statement 18/08/2015 to 17/09/2015,C&YPS-Non Delegated,POUNDSTRETCHER 175,10/09/2015,12.73,Cleaning Materials - General,"Drapery, Window Coverings, and Upholstery Stores",GPC
Statement 18/08/2015 to 17/09/2015,C&YPS-Non Delegated,PREMIER INN44011950,10/09/2015,166.67,Other Equipment & Materials - General,PREMIER TRAVEL,GPC
Statement 18/08/2015 to 17/09/2015,C&YPS-Non Delegated,PRIMARK 648,26/08/2015,34,Personal Needs of Clients - Clothing,Family Clothing Stores,GPC
Statement 18/08/2015 to 17/09/2015,C&YPS-Non Delegated,QUEENS UNIVERSITY BELF,14/09/2015,150,Training Expenses - General,"Colleges, Universities, Professional Schools, and",GPC
Statement 18/08/2015 to 17/09/2015,C&YPS-Non Delegated,QUEENS UNIVERSITY BELF,16/09/2015,150,Training Expenses - General,"Colleges, Universities, Professional Schools, and",GPC
Statement 18/08/2015 to 17/09/2015,C&YPS-Non Delegated,R N I B,24/08/2015,12.5,Other Services - General,Charitable and Social Service Organizations,GPC
Statement 18/08/2015 to 17/09/2015,C&YPS-Non Delegated,RNIB CHARITY,17/08/2015,168,General Equipment - General,Laboratory/Medical/Dental/Ophthalmic Hospital Equi,GPC
Statement 18/08/2015 to 17/09/2015,C&YPS-Non Delegated,ROLLERWORLD,18/08/2015,33,Other Equipment & Materials - General,Sporting and Recreational Camps,GPC
Statement 18/08/2015 to 17/09/2015,C&YPS-Non Delegated,RYMAN,17/08/2015,23.1,Stationery - General,"Stationery, Office, and School Supply Stores",GPC
Statement 18/08/2015 to 17/09/2015,C&YPS-Non Delegated,SAINSBURY'S S/MKT,07/09/2015,4.2,Materials - General,"Grocery Stores, Supermarkets",GPC
Statement 18/08/2015 to 17/09/2015,C&YPS-Non Delegated,SAINSBURY'S S/MKT,12/09/2015,40,Materials - General,"Grocery Stores, Supermarkets",GPC
Statement 18/08/2015 to 17/09/2015,C&YPS-Non Delegated,SAINSBURY'S S/MKT,17/08/2015,3.7,Other Equipment & Materials - General,"Grocery Stores, Supermarkets",GPC
Statement 18/08/2015 to 17/09/2015,C&YPS-Non Delegated,SAINSBURY'S S/MKT,28/08/2015,3.1,Other Equipment & Materials - General,"Grocery Stores, Supermarkets",GPC
Statement 18/08/2015 to 17/09/2015,C&YPS-Non Delegated,SAINSBURYS S/MKTS,01/09/2015,18.57,Materials - General,"Grocery Stores, Supermarkets",GPC
Statement 18/08/2015 to 17/09/2015,C&YPS-Non Delegated,SAINSBURYS S/MKTS,02/09/2015,7.2,Materials - General,"Grocery Stores, Supermarkets",GPC
Statement 18/08/2015 to 17/09/2015,C&YPS-Non Delegated,SAINSBURYS S/MKTS,07/09/2015,0.85,Materials - General,"Grocery Stores, Supermarkets",GPC
Statement 18/08/2015 to 17/09/2015,C&YPS-Non Delegated,SAINSBURYS S/MKTS,11/09/2015,3.35,Materials - General,"Grocery Stores, Supermarkets",GPC
Statement 18/08/2015 to 17/09/2015,C&YPS-Non Delegated,STAFFORDSHIRE COUNTY C,20/08/2015,10,Other Transfer Payments - Section 23 Grants,Government Services-Not Elsewhere Classified,GPC
Statement 18/08/2015 to 17/09/2015,C&YPS-Non Delegated,STAFFORDSHIRE COUNTY C,26/08/2015,-10,Other Transfer Payments - Section 23 Grants,Government Services-Not Elsewhere Classified,GPC
Statement 18/08/2015 to 17/09/2015,C&YPS-Non Delegated,STAPLES UK,10/09/2015,23.33,Stationery - General,"Stationery, Office, and School Supply Stores",GPC
Statement 18/08/2015 to 17/09/2015,C&YPS-Non Delegated,STAR CARPETS,02/09/2015,400,Materials - General,Floor Coverings   Stores,GPC
Statement 18/08/2015 to 17/09/2015,C&YPS-Non Delegated,STUDIO-MUSIC.CO.UK,11/08/2015,62.9,Stationery - General,"Music Stores-Musical Instruments, Pianos, Sheet Mu",GPC
Statement 18/08/2015 to 17/09/2015,C&YPS-Non Delegated,SUBWAY,21/08/2015,3.5,Subsistence - General,Fast-Food Restaurants (Quick Payment Service Pilot,GPC
Statement 18/08/2015 to 17/09/2015,C&YPS-Non Delegated,SUBWAY,11/09/2015,5,Subsistence - General,Fast-Food Restaurants (Quick Payment Service Pilot,GPC
Statement 18/08/2015 to 17/09/2015,C&YPS-Non Delegated,SURREY CC CARD PAY,25/08/2015,11,Other Transfer Payments - Section 23 Grants,Computer Network/Information Services,GPC
Statement 18/08/2015 to 17/09/2015,C&YPS-Non Delegated,SURVEYMONKEY.COM,03/09/2015,299,IT Equipment - General,Computer Network/Information Services,GPC
Statement 18/08/2015 to 17/09/2015,C&YPS-Non Delegated,SWADLINCOTE SKI,18/08/2015,10.4,Other Equipment & Materials - General,"Membership Clubs (Sports, Recreation, Athletic), C",GPC
Statement 18/08/2015 to 17/09/2015,C&YPS-Non Delegated,TESCO  STORES 2978,03/09/2015,9.5,Other Expenditure - General,"Grocery Stores, Supermarkets",GPC
Statement 18/08/2015 to 17/09/2015,C&YPS-Non Delegated,TESCO DIRECT,08/09/2015,388.95,Other Equipment & Materials - General,Miscellaneous and Specialty Retail Stores,GPC
Statement 18/08/2015 to 17/09/2015,C&YPS-Non Delegated,TESCO DIRECT,16/09/2015,-388.95,Other Equipment & Materials - General,Miscellaneous and Specialty Retail Stores,GPC
Statement 18/08/2015 to 17/09/2015,C&YPS-Non Delegated,TESCO STORE 2819,16/09/2015,41.38,Other Expenditure - General,"Grocery Stores, Supermarkets",GPC
Statement 18/08/2015 to 17/09/2015,C&YPS-Non Delegated,TESCO STORE 2846,09/09/2015,39,Materials - General,"Grocery Stores, Supermarkets",GPC
Statement 18/08/2015 to 17/09/2015,C&YPS-Non Delegated,TESCO STORE 2849,09/09/2015,2,Materials - General,"Grocery Stores, Supermarkets",GPC
Statement 18/08/2015 to 17/09/2015,C&YPS-Non Delegated,TESCO STORE 2849,17/08/2015,18.63,Other Equipment & Materials - General,"Grocery Stores, Supermarkets",GPC
Statement 18/08/2015 to 17/09/2015,C&YPS-Non Delegated,TESCO STORE 2849,19/08/2015,25.77,Other Equipment & Materials - General,"Grocery Stores, Supermarkets",GPC
Statement 18/08/2015 to 17/09/2015,C&YPS-Non Delegated,TESCO STORE 2849,14/09/2015,29.75,Other Equipment & Materials - General,"Grocery Stores, Supermarkets",GPC
Statement 18/08/2015 to 17/09/2015,C&YPS-Non Delegated,TESCO STORE 2849,16/09/2015,10.71,Other Equipment & Materials - General,"Grocery Stores, Supermarkets",GPC
Statement 18/08/2015 to 17/09/2015,C&YPS-Non Delegated,TESCO STORE 2849,24/08/2015,22.79,Other Expenditure - General,"Grocery Stores, Supermarkets",GPC
Statement 18/08/2015 to 17/09/2015,C&YPS-Non Delegated,TESCO STORE 2933,31/08/2015,8,Other Expenditure - General,"Grocery Stores, Supermarkets",GPC
Statement 18/08/2015 to 17/09/2015,C&YPS-Non Delegated,TESCO STORES 2044,11/09/2015,39.9,Other Expenditure - General,"Grocery Stores, Supermarkets",GPC
Statement 18/08/2015 to 17/09/2015,C&YPS-Non Delegated,TESCO STORES 2044,15/09/2015,15.43,Provisions - General,"Grocery Stores, Supermarkets",GPC
Statement 18/08/2015 to 17/09/2015,C&YPS-Non Delegated,TESCO STORES 2849,03/09/2015,5.26,Other Equipment & Materials - General,"Grocery Stores, Supermarkets",GPC
Statement 18/08/2015 to 17/09/2015,C&YPS-Non Delegated,TESCO STORES 2849,11/09/2015,13.98,Other Equipment & Materials - General,"Grocery Stores, Supermarkets",GPC
Statement 18/08/2015 to 17/09/2015,C&YPS-Non Delegated,TESCO STORES 2849,14/09/2015,30,Other Equipment & Materials - General,"Grocery Stores, Supermarkets",GPC
Statement 18/08/2015 to 17/09/2015,C&YPS-Non Delegated,TESCO STORES 2849,05/09/2015,11,Other Expenditure - General,"Grocery Stores, Supermarkets",GPC
Statement 18/08/2015 to 17/09/2015,C&YPS-Non Delegated,TESCO STORES 5182,26/08/2015,8.34,Cleaning Materials - General,"Grocery Stores, Supermarkets",GPC
Statement 18/08/2015 to 17/09/2015,C&YPS-Non Delegated,TESCO STORES 5182,27/08/2015,5.5,Other Equipment & Materials - General,"Grocery Stores, Supermarkets",GPC
Statement 18/08/2015 to 17/09/2015,C&YPS-Non Delegated,TESCO STORES 5182,20/08/2015,52.85,Provisions - General,"Grocery Stores, Supermarkets",GPC
Statement 18/08/2015 to 17/09/2015,C&YPS-Non Delegated,TESCO STORES 5182,26/08/2015,7.73,Training Expenses - General,"Grocery Stores, Supermarkets",GPC
Statement 18/08/2015 to 17/09/2015,C&YPS-Non Delegated,TESCO STORES 5902,21/08/2015,49.67,Provisions - General,"Grocery Stores, Supermarkets",GPC
Statement 18/08/2015 to 17/09/2015,C&YPS-Non Delegated,TESCO STORES 6135,20/08/2015,9.07,Other Equipment & Materials - General,"Grocery Stores, Supermarkets",GPC
Statement 18/08/2015 to 17/09/2015,C&YPS-Non Delegated,TESCO-STORES 6573,28/08/2015,15,Materials - General,"Grocery Stores, Supermarkets",GPC
Statement 18/08/2015 to 17/09/2015,C&YPS-Non Delegated,TGI FRIDAY'S,04/09/2015,109.25,Provisions - General,"Eating Places, Restaurants",GPC
Statement 18/08/2015 to 17/09/2015,C&YPS-Non Delegated,THE BOOK PEOPLE,01/09/2015,73.87,Books - General,Book Stores,GPC
Statement 18/08/2015 to 17/09/2015,C&YPS-Non Delegated,THE BOOK PEOPLE,08/09/2015,59.98,Books - General,Book Stores,GPC
Statement 18/08/2015 to 17/09/2015,C&YPS-Non Delegated,THE RANGE,29/08/2015,17.8,Materials - General,Department Stores,GPC
Statement 18/08/2015 to 17/09/2015,C&YPS-Non Delegated,THE RANGE,10/09/2015,77.94,Other Equipment & Materials - General,Department Stores,GPC
Statement 18/08/2015 to 17/09/2015,C&YPS-Non Delegated,THORNTONS,07/09/2015,30,Provisions - General,"Candy, Nut, Confectionery Stores",GPC
Statement 18/08/2015 to 17/09/2015,C&YPS-Non Delegated,TOUGHOOK,02/09/2015,15.3,Other Expenditure - General,Durable Goods Not Elsewhere Classified,GPC
Statement 18/08/2015 to 17/09/2015,C&YPS-Non Delegated,TRAINLINE,07/09/2015,35.85,Public Transport -  Staff - General,Passenger Railways,GPC
Statement 18/08/2015 to 17/09/2015,C&YPS-Non Delegated,TVLICENSING.CO.UK,03/09/2015,145.5,Other Transfer Payments - Leaving Care Grants,"Management, Consulting and Public Relations Servic",GPC
Statement 18/08/2015 to 17/09/2015,C&YPS-Non Delegated,TVLICENSING.CO.UK,24/08/2015,145.5,Schools Agency staff - Teaching Staff,"Management, Consulting and Public Relations Servic",GPC
Statement 18/08/2015 to 17/09/2015,C&YPS-Non Delegated,TVLICENSING.CO.UK,28/08/2015,145.5,Schools Agency staff - Teaching Staff,"Management, Consulting and Public Relations Servic",GPC
Statement 18/08/2015 to 17/09/2015,C&YPS-Non Delegated,TVLICENSING.CO.UK,28/08/2015,145.5,Schools Agency staff - Teaching Staff,"Management, Consulting and Public Relations Servic",GPC
Statement 18/08/2015 to 17/09/2015,C&YPS-Non Delegated,TVLICENSING.CO.UK,15/09/2015,145.5,Schools Agency staff - Teaching Staff,"Management, Consulting and Public Relations Servic",GPC
Statement 18/08/2015 to 17/09/2015,C&YPS-Non Delegated,TWINLAKESPARK.COM,03/09/2015,146.93,Public Transport -  Staff - General,"Amusement Parks, Circuses, Carnivals, Fortune Tell",GPC
Statement 18/08/2015 to 17/09/2015,C&YPS-Non Delegated,TWO STEEPLES,08/09/2015,4.9,Other Equipment & Materials - General,"Drinking Places (Alcoholic Beverages)-Bars, Tavern",GPC
Statement 18/08/2015 to 17/09/2015,C&YPS-Non Delegated,UNITE GROUP,08/09/2015,229.5,Schools Agency staff - Teaching Staff,Professional Services-Not Elsewhere Classified,GPC
Statement 18/08/2015 to 17/09/2015,C&YPS-Non Delegated,VODAFONE,17/08/2015,20,Communications Equipment - General,Telecommunication Service Including Local and Long,GPC
Statement 18/08/2015 to 17/09/2015,C&YPS-Non Delegated,W BOYES & CO LTD COALV,26/08/2015,83.93,Other Equipment & Materials - General,Discount Stores,GPC
Statement 18/08/2015 to 17/09/2015,C&YPS-Non Delegated,W M MORRISONS,18/08/2015,11.01,Other Equipment & Materials - General,"Grocery Stores, Supermarkets",GPC
Statement 18/08/2015 to 17/09/2015,C&YPS-Non Delegated,W M MORRISONS,19/08/2015,12.33,Other Equipment & Materials - General,"Grocery Stores, Supermarkets",GPC
Statement 18/08/2015 to 17/09/2015,C&YPS-Non Delegated,W M MORRISONS,25/08/2015,45.81,Other Equipment & Materials - General,"Grocery Stores, Supermarkets",GPC
Statement 18/08/2015 to 17/09/2015,C&YPS-Non Delegated,W M MORRISONS,02/09/2015,11.2,Other Equipment & Materials - General,"Grocery Stores, Supermarkets",GPC
Statement 18/08/2015 to 17/09/2015,C&YPS-Non Delegated,WICKES,03/09/2015,7.47,Other Equipment & Materials - General,"Building Materials, Lumber Stores",GPC
Statement 18/08/2015 to 17/09/2015,C&YPS-Non Delegated,WILKO RETAIL LIMIT,09/09/2015,3,Materials - General,Household Appliance Stores,GPC
Statement 18/08/2015 to 17/09/2015,C&YPS-Non Delegated,WILKO RETAIL LIMIT,25/08/2015,14,Other Equipment & Materials - General,Household Appliance Stores,GPC
Statement 18/08/2015 to 17/09/2015,C&YPS-Non Delegated,WILKO RETAIL LIMIT,27/08/2015,13.1,Personal Needs of Clients - General,Household Appliance Stores,GPC
Statement 18/08/2015 to 17/09/2015,C&YPS-Non Delegated,WILKO RETAIL LIMIT,03/09/2015,7,Subsistence - General,Household Appliance Stores,GPC
Statement 18/08/2015 to 17/09/2015,C&YPS-Non Delegated,WM MORRISON 054,01/09/2015,6.67,Cleaning Materials - General,"Grocery Stores, Supermarkets",GPC
Statement 18/08/2015 to 17/09/2015,C&YPS-Non Delegated,WM MORRISON 054,15/09/2015,14.99,Materials - General,"Grocery Stores, Supermarkets",GPC
Statement 18/08/2015 to 17/09/2015,C&YPS-Non Delegated,WOODLANDS GARDEN C,20/08/2015,3,Other Equipment & Materials - General,"Lawn and Garden Supply Stores, Nurseries",GPC
Statement 18/08/2015 to 17/09/2015,C&YPS-Non Delegated,WORKLINK PROJECT,02/09/2015,353,Other Services - General,Charitable and Social Service Organizations,GPC
Statement 18/08/2015 to 17/09/2015,C&YPS-Non Delegated,WWW.C2UOFFICE.CO.U,25/08/2015,86.13,Stationery - General,"Stationery, Office, and School Supply Stores",GPC
Statement 18/08/2015 to 17/09/2015,C&YPS-Non Delegated,WWW.CIPS.ORG,09/09/2015,169.83,Books - General,Membership Organizations-Not Elsewhere Classified,GPC
Statement 18/08/2015 to 17/09/2015,C&YPS-Non Delegated,WWW.ELKLAN.CO.UK,04/09/2015,48,Other Equipment & Materials - General,Schools and Educational Services-Not Elsewhere Cla,GPC
Statement 18/08/2015 to 17/09/2015,C&YPS-Non Delegated,WWW.IGLOO-BOOKS.COM,10/09/2015,25.94,Books - General,Book Stores,GPC
Statement 18/08/2015 to 17/09/2015,C&YPS-Non Delegated,WWW.MILKANDMORE.CO.UK,24/08/2015,14.04,Provisions - General,Continuity/Subscription Merchants,GPC
Statement 18/08/2015 to 17/09/2015,C&YPS-Non Delegated,WWW.MILKANDMORE.CO.UK,01/09/2015,11.75,Provisions - General,Continuity/Subscription Merchants,GPC
Statement 18/08/2015 to 17/09/2015,C&YPS-Non Delegated,WWW.MILKANDMORE.CO.UK,01/09/2015,12.48,Provisions - General,Continuity/Subscription Merchants,GPC
Statement 18/08/2015 to 17/09/2015,C&YPS-Non Delegated,WWW.OPTIMALOWVISION.CO,17/08/2015,663.12,Other Equipment & Materials - General,Opticians,GPC
Statement 18/08/2015 to 17/09/2015,C&YPS-Non Delegated,WWW.ROYALMAIL.COM,16/09/2015,126,Postal Services - General,Postage Stamps,GPC
Statement 18/08/2015 to 17/09/2015,C&YPS-Non Delegated,WWW.THEWORKS.CO.UK,01/09/2015,40,Books - General,Book Stores,GPC
Statement 18/08/2015 to 17/09/2015,C&YPS-Non Delegated,YUMI ICE CREAM,24/08/2015,5.1,Provisions - General,"Miscellaneous Food Stores-Convenience Stores, Mark",GPC
Statement 18/08/2015 to 17/09/2015,C&YPS-Schools,ALDI,14/09/2015,17.74,Materials - General,"Grocery Stores, Supermarkets",GPC
Statement 18/08/2015 to 17/09/2015,C&YPS-Schools,ARGOS LTD,16/09/2015,15,Materials - General,Discount Stores,GPC
Statement 18/08/2015 to 17/09/2015,C&YPS-Schools,ASDA SUPERSTORE,15/09/2015,16,Materials - General,"Grocery Stores, Supermarkets",GPC
Statement 18/08/2015 to 17/09/2015,C&YPS-Schools,B & Q,03/09/2015,12.74,R & M of Buildings - General,"Building Materials, Lumber Stores",GPC
Statement 18/08/2015 to 17/09/2015,C&YPS-Schools,JS ONLINE GROCERY,01/09/2015,101.5,Materials - General,"Grocery Stores, Supermarkets",GPC
Statement 18/08/2015 to 17/09/2015,C&YPS-Schools,JS ONLINE GROCERY,07/09/2015,51.68,Materials - General,"Grocery Stores, Supermarkets",GPC
Statement 18/08/2015 to 17/09/2015,C&YPS-Schools,PAYPAL  WORLDBOOKSL,03/09/2015,7.73,Books - General,Book Stores,GPC
Statement 18/08/2015 to 17/09/2015,C&YPS-Schools,ST JOHN AMBULANCE,27/08/2015,246,Training Expenses - General,"Colleges, Universities, Professional Schools, and",GPC
Statement 18/08/2015 to 17/09/2015,C&YPS-Schools,TESCO STORES 5182,16/09/2015,37.69,Materials - General,"Grocery Stores, Supermarkets",GPC
Statement 18/08/2015 to 17/09/2015,C&YPS-Schools,THE BOOK PEOPLE,10/09/2015,19.09,Books - General,Book Stores,GPC
Statement 18/08/2015 to 17/09/2015,C&YPS-Schools,WWW.SCHOOLSTICKERS.CO.,27/08/2015,10.79,Printing - General,Miscellaneous Publishing and  Printing,GPC
Statement 18/08/2015 to 17/09/2015,Central Items,Amazon UK Marketplace,02/09/2015,256.63,Suspense - General,Book Stores,GPC
Statement 18/08/2015 to 17/09/2015,Central Items,Amazon UK Marketplace,08/09/2015,53.45,Suspense - General,Miscellaneous and Specialty Retail Stores,GPC
Statement 18/08/2015 to 17/09/2015,Central Items,Amazon UK Retail,08/09/2015,9.16,Suspense - General,Direct Marketers - Other,GPC
Statement 18/08/2015 to 17/09/2015,Central Items,Amazon UK Retail,09/09/2015,11.03,Suspense - General,Direct Marketers - Other,GPC
Statement 18/08/2015 to 17/09/2015,Central Items,Amazon UK Retail,12/09/2015,104.46,Suspense - General,Direct Marketers - Other,GPC
Statement 18/08/2015 to 17/09/2015,Chief Executive,Amazon Svcs Europe SAR,20/08/2015,4.84,Stationery - General,Book Stores,GPC
Statement 18/08/2015 to 17/09/2015,Chief Executive,Amazon UK Marketplace,11/09/2015,4.75,IT Equipment - General,Miscellaneous and Specialty Retail Stores,GPC
Statement 18/08/2015 to 17/09/2015,Chief Executive,Amazon UK Marketplace,07/09/2015,3.4,Stationery - General,Miscellaneous and Specialty Retail Stores,GPC
Statement 18/08/2015 to 17/09/2015,Chief Executive,BRANTING HILL 384,11/09/2015,8.96,Subsistence - General,Service Stations (with or without Ancillary Servic,GPC
Statement 18/08/2015 to 17/09/2015,Chief Executive,CARTRIDGESAVE.CO.UK,24/08/2015,435.9,Stationery - General,"Stationery, Office, and School Supply Stores",GPC
Statement 18/08/2015 to 17/09/2015,Chief Executive,EAST MIDLANDS LEICESTER,10/09/2015,5.83,Casual/Essential - General,Automobile Parking Lots and Garages,GPC
Statement 18/08/2015 to 17/09/2015,Chief Executive,EASTMIDLANDSTRAINS,10/09/2015,329,Public Transport -  Staff - General,Passenger Railways,GPC
Statement 18/08/2015 to 17/09/2015,Chief Executive,GRO HM PASSPORT OFFICE,17/08/2015,23.4,Other Expenditure - General,Government Services-Not Elsewhere Classified,GPC
Statement 18/08/2015 to 17/09/2015,Chief Executive,JOHN CHEATLE SCHOOLSWE,27/08/2015,22.48,Protective Clothing & Uniforms - General,Children's and Infants' Wear Stores,GPC
Statement 18/08/2015 to 17/09/2015,Chief Executive,WWW.CJSEVENTS.CO.UK,10/09/2015,154.5,Schools Agency staff - Teaching Staff,"Management, Consulting and Public Relations Servic",GPC
Statement 18/08/2015 to 17/09/2015,Chief Executive,WWW.FORMALLYSUITED,15/09/2015,10.99,Protective Clothing & Uniforms - General,"Clothing Rental-Costumes, Uniforms",GPC
Statement 18/08/2015 to 17/09/2015,Chief Executive,WWW.ICO.GOV.UK,25/08/2015,35,Other Expenditure - General,Government Services-Not Elsewhere Classified,GPC
Statement 18/08/2015 to 17/09/2015,Chief Executive,WWW.POSTURITE.CO.UK,16/09/2015,-40.61,Other Expenditure - General,Commercial Furniture,GPC
Statement 18/08/2015 to 17/09/2015,Chief Executive,WWW.STAPLES.CO.UK,26/08/2015,32.87,Stationery - General,"Stationery, Office, and School Supply Stores",GPC
Statement 18/08/2015 to 17/09/2015,Corporate Resources,4CHILDREN,02/09/2015,190,Conference - General,Charitable and Social Service Organizations,GPC
Statement 18/08/2015 to 17/09/2015,Corporate Resources,AA STATIONERS LEICESTER,27/08/2015,29.15,Other Services - General,"Stationery, Office, and School Supply Stores",GPC
Statement 18/08/2015 to 17/09/2015,Corporate Resources,ACADEMY HIGH ACHIEVERS,24/08/2015,1138,Training Expenses - General,Business and Secretarial Schools,GPC
Statement 18/08/2015 to 17/09/2015,Corporate Resources,AGE UK LEICESTER SHIRE,18/08/2015,9,Other Services - General,Charitable and Social Service Organizations,GPC
Statement 18/08/2015 to 17/09/2015,Corporate Resources,ALDI,26/08/2015,4.99,Other Expenditure - General,"Grocery Stores, Supermarkets",GPC
Statement 18/08/2015 to 17/09/2015,Corporate Resources,Amazon Prime,20/08/2015,-79,Other Services - General,Continuity/Subscription Merchants,GPC
Statement 18/08/2015 to 17/09/2015,Corporate Resources,Amazon Svcs Europe SAR,02/09/2015,3.7,Books - General,Book Stores,GPC
Statement 18/08/2015 to 17/09/2015,Corporate Resources,Amazon Svcs Europe SAR,04/09/2015,4.94,Books - General,Book Stores,GPC
Statement 18/08/2015 to 17/09/2015,Corporate Resources,Amazon Svcs Europe SAR,18/08/2015,8.78,Other Expenditure - General,Book Stores,GPC
Statement 18/08/2015 to 17/09/2015,Corporate Resources,Amazon UK Marketplace,03/09/2015,4.14,Operational Equipment - General,Miscellaneous and Specialty Retail Stores,GPC
Statement 18/08/2015 to 17/09/2015,Corporate Resources,Amazon UK Marketplace,07/09/2015,65.72,Other Equipment & Materials - General,Miscellaneous and Specialty Retail Stores,GPC
Statement 18/08/2015 to 17/09/2015,Corporate Resources,Amazon UK Marketplace,10/09/2015,6.27,Other Equipment & Materials - General,Miscellaneous and Specialty Retail Stores,GPC
Statement 18/08/2015 to 17/09/2015,Corporate Resources,Amazon UK Marketplace,18/08/2015,18.67,Other Expenditure - General,Miscellaneous and Specialty Retail Stores,GPC
Statement 18/08/2015 to 17/09/2015,Corporate Resources,Amazon UK Marketplace,19/08/2015,55,Other Expenditure - General,Miscellaneous and Specialty Retail Stores,GPC
Statement 18/08/2015 to 17/09/2015,Corporate Resources,Amazon UK Marketplace,19/08/2015,10.68,Other Expenditure - General,Miscellaneous and Specialty Retail Stores,GPC
Statement 18/08/2015 to 17/09/2015,Corporate Resources,Amazon UK Marketplace,27/08/2015,23.47,Publicity/Marketing - General,Miscellaneous and Specialty Retail Stores,GPC
Statement 18/08/2015 to 17/09/2015,Corporate Resources,Amazon UK Marketplace,10/09/2015,13.98,Publicity/Marketing - General,Miscellaneous and Specialty Retail Stores,GPC
Statement 18/08/2015 to 17/09/2015,Corporate Resources,Amazon UK Marketplace,14/09/2015,2.49,Publicity/Marketing - General,Miscellaneous and Specialty Retail Stores,GPC
Statement 18/08/2015 to 17/09/2015,Corporate Resources,Amazon UK Marketplace,11/09/2015,2.3,Stationery - General,Miscellaneous and Specialty Retail Stores,GPC
Statement 18/08/2015 to 17/09/2015,Corporate Resources,Amazon UK Marketplace,13/09/2015,40.6,Stationery - General,Miscellaneous and Specialty Retail Stores,GPC
Statement 18/08/2015 to 17/09/2015,Corporate Resources,Amazon UK Marketplace,08/09/2015,59.17,Telephones - Mobile Phones,Miscellaneous and Specialty Retail Stores,GPC
Statement 18/08/2015 to 17/09/2015,Corporate Resources,Amazon UK Marketplace,08/09/2015,21.13,Telephones - Mobile Phones,Miscellaneous and Specialty Retail Stores,GPC
Statement 18/08/2015 to 17/09/2015,Corporate Resources,Amazon UK Marketplace,21/08/2015,15.9,Training Expenses - General,Miscellaneous and Specialty Retail Stores,GPC
Statement 18/08/2015 to 17/09/2015,Corporate Resources,Amazon UK Marketplace,26/08/2015,41.69,Training Expenses - General,Miscellaneous and Specialty Retail Stores,GPC
Statement 18/08/2015 to 17/09/2015,Corporate Resources,Amazon UK Marketplace,08/09/2015,4.25,Training Expenses - General,Book Stores,GPC
Statement 18/08/2015 to 17/09/2015,Corporate Resources,Amazon UK Retail,27/08/2015,13.21,Other Expenditure - General,Direct Marketers - Other,GPC
Statement 18/08/2015 to 17/09/2015,Corporate Resources,Amazon UK Retail,27/08/2015,13.22,Other Expenditure - General,Direct Marketers - Other,GPC
Statement 18/08/2015 to 17/09/2015,Corporate Resources,Amazon UK Retail,02/09/2015,-11.71,Other Expenditure - General,Direct Marketers - Other,GPC
Statement 18/08/2015 to 17/09/2015,Corporate Resources,Amazon UK Retail,02/09/2015,-11.73,Other Expenditure - General,Direct Marketers - Other,GPC
Statement 18/08/2015 to 17/09/2015,Corporate Resources,Amazon UK Retail,02/09/2015,13.84,Other Expenditure - General,Direct Marketers - Other,GPC
Statement 18/08/2015 to 17/09/2015,Corporate Resources,Amazon UK Retail,02/09/2015,13.83,Other Expenditure - General,Direct Marketers - Other,GPC
Statement 18/08/2015 to 17/09/2015,Corporate Resources,Amazon UK Retail,05/09/2015,50.41,Stationery - General,Direct Marketers - Other,GPC
Statement 18/08/2015 to 17/09/2015,Corporate Resources,Amazon UK Retail,25/08/2015,165,Training Expenses - General,Direct Marketers - Other,GPC
Statement 18/08/2015 to 17/09/2015,Corporate Resources,Amazon UK Retail,26/08/2015,166.38,Training Expenses - General,Direct Marketers - Other,GPC
Statement 18/08/2015 to 17/09/2015,Corporate Resources,Amazon UK Retail,29/08/2015,663.6,Training Expenses - General,Direct Marketers - Other,GPC
Statement 18/08/2015 to 17/09/2015,Corporate Resources,AMT COFFEE,16/09/2015,2.8,Subsistence - General,"Eating Places, Restaurants",GPC
Statement 18/08/2015 to 17/09/2015,Corporate Resources,APCOA - NWR MANCHESTER,25/08/2015,4,Public Transport -  Staff - General,Automobile Parking Lots and Garages,GPC
Statement 18/08/2015 to 17/09/2015,Corporate Resources,APCOA - NWR MANCHESTER,26/08/2015,8.5,Public Transport -  Staff - General,Automobile Parking Lots and Garages,GPC
Statement 18/08/2015 to 17/09/2015,Corporate Resources,APCOA - NWR MANCHESTER,02/09/2015,12,Subsistence - General,Automobile Parking Lots and Garages,GPC
Statement 18/08/2015 to 17/09/2015,Corporate Resources,APCOA - NWR MANCHESTER,09/09/2015,25.5,Subsistence - General,Automobile Parking Lots and Garages,GPC
Statement 18/08/2015 to 17/09/2015,Corporate Resources,ARCO LTD,03/09/2015,30.79,Other Expenditure - General,Industrial Supplies Not Elsewhere Classified,GPC
Statement 18/08/2015 to 17/09/2015,Corporate Resources,ARCO LTD,24/08/2015,98.07,Other Services - General,Industrial Supplies Not Elsewhere Classified,GPC
Statement 18/08/2015 to 17/09/2015,Corporate Resources,ARCO LTD,24/08/2015,111.48,Other Services - General,Industrial Supplies Not Elsewhere Classified,GPC
Statement 18/08/2015 to 17/09/2015,Corporate Resources,ARGOS,31/08/2015,59.99,Stationery - General,Discount Stores,GPC
Statement 18/08/2015 to 17/09/2015,Corporate Resources,ARGOS LTD,26/08/2015,2.75,Stationery - General,Discount Stores,GPC
Statement 18/08/2015 to 17/09/2015,Corporate Resources,ASDA STORES,20/08/2015,44,Other Services - General,"Grocery Stores, Supermarkets",GPC
Statement 18/08/2015 to 17/09/2015,Corporate Resources,ASDA STORES,20/08/2015,8,Other Services - General,"Grocery Stores, Supermarkets",GPC
Statement 18/08/2015 to 17/09/2015,Corporate Resources,ASDA STORES,30/08/2015,40.49,Other Services - General,"Grocery Stores, Supermarkets",GPC
Statement 18/08/2015 to 17/09/2015,Corporate Resources,ASDA STORES 4477,16/09/2015,8.45,Materials - General,"Grocery Stores, Supermarkets",GPC
Statement 18/08/2015 to 17/09/2015,Corporate Resources,ASDA STORES 4477,19/08/2015,12.92,Other Expenditure - General,"Grocery Stores, Supermarkets",GPC
Statement 18/08/2015 to 17/09/2015,Corporate Resources,ASDA STORES 4477,26/08/2015,0.89,Other Expenditure - General,"Grocery Stores, Supermarkets",GPC
Statement 18/08/2015 to 17/09/2015,Corporate Resources,ASDA STORES 4477,26/08/2015,12.58,Other Expenditure - General,"Grocery Stores, Supermarkets",GPC
Statement 18/08/2015 to 17/09/2015,Corporate Resources,ASDA STORES 4477,02/09/2015,4.26,Other Expenditure - General,"Grocery Stores, Supermarkets",GPC
Statement 18/08/2015 to 17/09/2015,Corporate Resources,ASDA STORES 4477,03/09/2015,12.26,Other Expenditure - General,"Grocery Stores, Supermarkets",GPC
Statement 18/08/2015 to 17/09/2015,Corporate Resources,ASDA STORES 4477,09/09/2015,0.89,Other Expenditure - General,"Grocery Stores, Supermarkets",GPC
Statement 18/08/2015 to 17/09/2015,Corporate Resources,ASDA STORES 4477,09/09/2015,9.78,Other Expenditure - General,"Grocery Stores, Supermarkets",GPC
Statement 18/08/2015 to 17/09/2015,Corporate Resources,ASDA STORES 4477,11/09/2015,8.39,Other Expenditure - General,"Grocery Stores, Supermarkets",GPC
Statement 18/08/2015 to 17/09/2015,Corporate Resources,AUTOGRILL LEON KINGSCROSS,18/08/2015,6.95,Subsistence - General,"Eating Places, Restaurants",GPC
Statement 18/08/2015 to 17/09/2015,Corporate Resources,BARBICAN HOTEL,20/08/2015,109.65,Training Expenses - General,"Lodging-Hotels, Motels, Resorts",GPC
Statement 18/08/2015 to 17/09/2015,Corporate Resources,BASC MEMBERSHIP,27/08/2015,50,Other Expenditure - General,"Membership Clubs (Sports, Recreation, Athletic), C",GPC
Statement 18/08/2015 to 17/09/2015,Corporate Resources,BLABY DISTRICT COUNCIL,15/09/2015,3.75,Public Transport -  Staff - General,Automobile Parking Lots and Garages,GPC
Statement 18/08/2015 to 17/09/2015,Corporate Resources,BR GIBBS & DANDY,18/08/2015,84.24,Materials - General,"Building Materials, Lumber Stores",GPC
Statement 18/08/2015 to 17/09/2015,Corporate Resources,CAFEXPRESSHOP,15/09/2015,6.94,Subsistence - General,"Grocery Stores, Supermarkets",GPC
Statement 18/08/2015 to 17/09/2015,Corporate Resources,CAMDEN FOOD COMPANY,24/08/2015,7.31,Subsistence - General,Fast-Food Restaurants (Quick Payment Service Pilot,GPC
Statement 18/08/2015 to 17/09/2015,Corporate Resources,CHARGE.PREZI.COM,08/09/2015,103.57,Publicity/Marketing - General,"Computers, Computer Peripheral Equipment, Software",GPC
Statement 18/08/2015 to 17/09/2015,Corporate Resources,CHESHIRE WEST AND CHESTER,17/08/2015,4.9,Public Transport -  Staff - General,Automobile Parking Lots and Garages,GPC
Statement 18/08/2015 to 17/09/2015,Corporate Resources,ClickMeeting,10/09/2015,23.41,Training Expenses - General,Computer Network/Information Services,GPC
Statement 18/08/2015 to 17/09/2015,Corporate Resources,ClickMeeting,15/09/2015,23.41,Training Expenses - General,Computer Network/Information Services,GPC
Statement 18/08/2015 to 17/09/2015,Corporate Resources,CO-OP GROUP 070412,02/09/2015,21.94,Other Expenditure - General,"Grocery Stores, Supermarkets",GPC
Statement 18/08/2015 to 17/09/2015,Corporate Resources,COSTA COFFEE,19/08/2015,4.55,Subsistence - General,"Eating Places, Restaurants",GPC
Statement 18/08/2015 to 17/09/2015,Corporate Resources,CURRYS ONLINE,08/09/2015,34.99,Stationery - General,"RADIO, TELEVISION, AND STEREO STORES (ELECTRONIC STORES)",GPC
Statement 18/08/2015 to 17/09/2015,Corporate Resources,DEBENHAMS,11/09/2015,7.69,Subsistence - General,Department Stores,GPC
Statement 18/08/2015 to 17/09/2015,Corporate Resources,DESTINET LTD,30/08/2015,174,Publicity/Marketing - General,Advertising Services,GPC
Statement 18/08/2015 to 17/09/2015,Corporate Resources,E COAST MAIN LN CO LTD,15/09/2015,26,Public Transport -  Staff - General,Automobile Parking Lots and Garages,GPC
Statement 18/08/2015 to 17/09/2015,Corporate Resources,EA HAZARDOUS WASTE-DOM,03/09/2015,18,Other Equipment & Materials - General,Government Services-Not Elsewhere Classified,GPC
Statement 18/08/2015 to 17/09/2015,Corporate Resources,EAST MIDLANDS LEICESTER,08/09/2015,13,Casual/Essential - General,Automobile Parking Lots and Garages,GPC
Statement 18/08/2015 to 17/09/2015,Corporate Resources,EAST MIDLANDS MARKET HAR,18/08/2015,10.5,Public Transport -  Staff - General,Automobile Parking Lots and Garages,GPC
Statement 18/08/2015 to 17/09/2015,Corporate Resources,EAST MIDLANDS MARKET HAR,18/08/2015,10.5,Public Transport -  Staff - General,Automobile Parking Lots and Garages,GPC
Statement 18/08/2015 to 17/09/2015,Corporate Resources,EAST MIDLANDS MARKET HAR,19/08/2015,10.5,Public Transport -  Staff - General,Automobile Parking Lots and Garages,GPC
Statement 18/08/2015 to 17/09/2015,Corporate Resources,EAST MIDLANDS MARKET HAR,25/08/2015,21,Public Transport -  Staff - General,Automobile Parking Lots and Garages,GPC
Statement 18/08/2015 to 17/09/2015,Corporate Resources,EAST MIDLANDS MARKET HAR,26/08/2015,10.5,Public Transport -  Staff - General,Automobile Parking Lots and Garages,GPC
Statement 18/08/2015 to 17/09/2015,Corporate Resources,EAST MIDLANDS MARKET HAR,26/08/2015,10.5,Public Transport -  Staff - General,Automobile Parking Lots and Garages,GPC
Statement 18/08/2015 to 17/09/2015,Corporate Resources,EAST MIDLANDS MARKET HAR,28/08/2015,10.5,Public Transport -  Staff - General,Automobile Parking Lots and Garages,GPC
Statement 18/08/2015 to 17/09/2015,Corporate Resources,EAST MIDLANDS MARKET HAR,01/09/2015,10.5,Public Transport -  Staff - General,Automobile Parking Lots and Garages,GPC
Statement 18/08/2015 to 17/09/2015,Corporate Resources,EAST MIDLANDS MARKET HAR,02/09/2015,10.5,Public Transport -  Staff - General,Automobile Parking Lots and Garages,GPC
Statement 18/08/2015 to 17/09/2015,Corporate Resources,EAST MIDLANDS MARKET HAR,07/09/2015,6.5,Public Transport -  Staff - General,Automobile Parking Lots and Garages,GPC
Statement 18/08/2015 to 17/09/2015,Corporate Resources,EAST MIDLANDS MARKET HAR,09/09/2015,10.5,Public Transport -  Staff - General,Automobile Parking Lots and Garages,GPC
Statement 18/08/2015 to 17/09/2015,Corporate Resources,EAST MIDLANDS MARKET HAR,10/09/2015,10.5,Public Transport -  Staff - General,Automobile Parking Lots and Garages,GPC
Statement 18/08/2015 to 17/09/2015,Corporate Resources,EAST MIDLANDS MARKET HAR,10/09/2015,10.5,Public Transport -  Staff - General,Automobile Parking Lots and Garages,GPC
Statement 18/08/2015 to 17/09/2015,Corporate Resources,EAST MIDLANDS MARKET HAR,11/09/2015,10.5,Public Transport -  Staff - General,Automobile Parking Lots and Garages,GPC
Statement 18/08/2015 to 17/09/2015,Corporate Resources,EAST MIDLANDS TRAI,26/08/2015,29.6,Public Transport -  Staff - General,Passenger Railways,GPC
Statement 18/08/2015 to 17/09/2015,Corporate Resources,EAST MIDLANDS TRAI,28/08/2015,48.5,Public Transport -  Staff - General,Passenger Railways,GPC
Statement 18/08/2015 to 17/09/2015,Corporate Resources,EASTMIDLANDSTRAINS,15/09/2015,162,Casual/Essential - General,Passenger Railways,GPC
Statement 18/08/2015 to 17/09/2015,Corporate Resources,EAT LTD,14/09/2015,4.99,Subsistence - General,"Eating Places, Restaurants",GPC
Statement 18/08/2015 to 17/09/2015,Corporate Resources,ELEARNINGART.COM,10/09/2015,311.41,IT Equipment - General,"Commercial Photography, Art, Graphics",GPC
Statement 18/08/2015 to 17/09/2015,Corporate Resources,ESSO MALTHURST  MEASHAM,29/08/2015,2,Other Expenditure - General,Service Stations (with or without Ancillary Servic,GPC
Statement 18/08/2015 to 17/09/2015,Corporate Resources,EVENT FURNITURE LIMITE,26/08/2015,228,Other Equipment & Materials - General,"Equipment Rental and Leasing Services, Tool Rental",GPC
Statement 18/08/2015 to 17/09/2015,Corporate Resources,FAST KEY SERVICES,10/09/2015,75.96,IT Equipment - General,Business Services-Not Elsewhere Classified,GPC
Statement 18/08/2015 to 17/09/2015,Corporate Resources,FOREIGN EXCHANGE FEE,14/09/2015,8.56,IT Equipment - General,Misc-Unknown,GPC
Statement 18/08/2015 to 17/09/2015,Corporate Resources,FOREIGN EXCHANGE FEE,24/08/2015,1.92,Materials - General,Misc-Unknown,GPC
Statement 18/08/2015 to 17/09/2015,Corporate Resources,FOREIGN EXCHANGE FEE,14/09/2015,1.05,Materials - General,Misc-Unknown,GPC
Statement 18/08/2015 to 17/09/2015,Corporate Resources,FOREIGN EXCHANGE FEE,07/09/2015,2.93,Publicity/Marketing - General,Misc-Unknown,GPC
Statement 18/08/2015 to 17/09/2015,Corporate Resources,FOREIGN EXCHANGE FEE,09/09/2015,2.85,Publicity/Marketing - General,Misc-Unknown,GPC
Statement 18/08/2015 to 17/09/2015,Corporate Resources,GANTTIC LLC,11/09/2015,38.28,Materials - General,Miscellaneous and Specialty Retail Stores,GPC
Statement 18/08/2015 to 17/09/2015,Corporate Resources,HALFORDS 0428,20/08/2015,62.48,Operational Equipment - General,Bicycle Shops-Sales and Service,GPC
Statement 18/08/2015 to 17/09/2015,Corporate Resources,HALFORDS 0428,30/08/2015,21.64,Operational Equipment - General,Bicycle Shops-Sales and Service,GPC
Statement 18/08/2015 to 17/09/2015,Corporate Resources,HALFORDS 0428,04/09/2015,15.83,Other Services - General,Bicycle Shops-Sales and Service,GPC
Statement 18/08/2015 to 17/09/2015,Corporate Resources,HALFORDS 0428,11/09/2015,10.82,Other Services - General,Bicycle Shops-Sales and Service,GPC
Statement 18/08/2015 to 17/09/2015,Corporate Resources,HALLMARK TRACTORS LTD,08/09/2015,37.47,Other Services - General,Miscellaneous Automotive Dealers -  Not Elsewhere,GPC
Statement 18/08/2015 to 17/09/2015,Corporate Resources,HARLOW BROS LTD,02/09/2015,2.39,Other Services - General,"Building Materials, Lumber Stores",GPC
Statement 18/08/2015 to 17/09/2015,Corporate Resources,HIGGOTTS,03/09/2015,6.62,Other Expenditure - General,Landscaping and Horticultural Services,GPC
Statement 18/08/2015 to 17/09/2015,Corporate Resources,HIGGOTTS,14/09/2015,43.95,Protective Clothing & Uniforms - General,Landscaping and Horticultural Services,GPC
Statement 18/08/2015 to 17/09/2015,Corporate Resources,HMCOURTS-SERVICE.G,24/08/2015,210,Other Expenditure - General,Fines,GPC
Statement 18/08/2015 to 17/09/2015,Corporate Resources,HMCOURTS-SERVICE.G,02/09/2015,210,Other Expenditure - General,Fines,GPC
Statement 18/08/2015 to 17/09/2015,Corporate Resources,HMCOURTS-SERVICE.G,07/09/2015,210,Other Expenditure - General,Fines,GPC
Statement 18/08/2015 to 17/09/2015,Corporate Resources,HMCOURTS-SERVICE.G,14/09/2015,210,Other Expenditure - General,Fines,GPC
Statement 18/08/2015 to 17/09/2015,Corporate Resources,HOLIDAY INN EXPRSS,16/09/2015,350,Training Expenses - General,"Lodging-Hotels, Motels, Resorts",GPC
Statement 18/08/2015 to 17/09/2015,Corporate Resources,HOMEBASE LTD 042,15/09/2015,14.24,Other Services - General,"Building Materials, Lumber Stores",GPC
Statement 18/08/2015 to 17/09/2015,Corporate Resources,HOOTSUITE MEDIA INC.,06/09/2015,106.59,Publicity/Marketing - General,Business Services-Not Elsewhere Classified,GPC
Statement 18/08/2015 to 17/09/2015,Corporate Resources,HTTP://ACE.APPRENTICES,20/08/2015,22,Training Expenses - General,"Management, Consulting and Public Relations Servic",GPC
Statement 18/08/2015 to 17/09/2015,Corporate Resources,HTTP://ACE.APPRENTICES,24/08/2015,22,Training Expenses - General,"Management, Consulting and Public Relations Servic",GPC
Statement 18/08/2015 to 17/09/2015,Corporate Resources,IMPERIAL CHINA RES,24/08/2015,20,Subsistence - General,"Eating Places, Restaurants",GPC
Statement 18/08/2015 to 17/09/2015,Corporate Resources,INTO LONDON MDX,09/09/2015,23.6,Subsistence - General,"Colleges, Universities, Professional Schools, and",GPC
Statement 18/08/2015 to 17/09/2015,Corporate Resources,ITUNES.COM/BILL,15/09/2015,4.99,IT Equipment - Software,Record Shops,GPC
Statement 18/08/2015 to 17/09/2015,Corporate Resources,JOHNSTONES DECORATING,10/09/2015,23.72,Other Expenditure - General,"Glass, Paint, Wallpaper Stores",GPC
Statement 18/08/2015 to 17/09/2015,Corporate Resources,JURYS INN NEWCSTLE,15/09/2015,10,Subsistence - General,"Lodging-Hotels, Motels, Resorts",GPC
Statement 18/08/2015 to 17/09/2015,Corporate Resources,LE FEVRES STORES,12/09/2015,14.08,Other Expenditure - General,"Grocery Stores, Supermarkets",GPC
Statement 18/08/2015 to 17/09/2015,Corporate Resources,LINKEDIN-304 1571193,20/08/2015,227.94,Other Expenditure - General,Continuity/Subscription Merchants,GPC
Statement 18/08/2015 to 17/09/2015,Corporate Resources,LINKEDIN-306 7115843,27/08/2015,227.94,Other Expenditure - General,Continuity/Subscription Merchants,GPC
Statement 18/08/2015 to 17/09/2015,Corporate Resources,LINKEDIN-310 9559653,08/09/2015,227.94,Other Expenditure - General,Continuity/Subscription Merchants,GPC
Statement 18/08/2015 to 17/09/2015,Corporate Resources,LINKEDIN-3109544743,08/09/2015,227.94,Other Expenditure - General,Continuity/Subscription Merchants,GPC
Statement 18/08/2015 to 17/09/2015,Corporate Resources,LUL TICKET MACHINE,18/08/2015,20,Public Transport -  Staff - General,Passenger Railways,GPC
Statement 18/08/2015 to 17/09/2015,Corporate Resources,LUL TICKET MACHINE,18/08/2015,20,Public Transport -  Staff - General,Passenger Railways,GPC
Statement 18/08/2015 to 17/09/2015,Corporate Resources,LUL TICKET MACHINE,01/09/2015,50,Public Transport -  Staff - General,Passenger Railways,GPC
Statement 18/08/2015 to 17/09/2015,Corporate Resources,LUL TICKET MACHINE,07/09/2015,12,Public Transport -  Staff - General,Passenger Railways,GPC
Statement 18/08/2015 to 17/09/2015,Corporate Resources,LUL TICKET MACHINE,10/09/2015,20,Public Transport -  Staff - General,Passenger Railways,GPC
Statement 18/08/2015 to 17/09/2015,Corporate Resources,LUL TICKET MACHINE,16/09/2015,9.6,Public Transport -  Staff - General,Passenger Railways,GPC
Statement 18/08/2015 to 17/09/2015,Corporate Resources,M&S SIMPLY FOOD - SSP,19/08/2015,9.34,Subsistence - General,"Miscellaneous Food Stores-Convenience Stores, Mark",GPC
Statement 18/08/2015 to 17/09/2015,Corporate Resources,M&S SIMPLY FOOD - SSP,25/08/2015,6.5,Subsistence - General,"Miscellaneous Food Stores-Convenience Stores, Mark",GPC
Statement 18/08/2015 to 17/09/2015,Corporate Resources,M&S SIMPLY FOOD - SSP,08/09/2015,6.1,Subsistence - General,"Miscellaneous Food Stores-Convenience Stores, Mark",GPC
Statement 18/08/2015 to 17/09/2015,Corporate Resources,M&S SIMPLY FOOD-SSP,15/09/2015,8.95,Subsistence - General,"Miscellaneous Food Stores-Convenience Stores, Mark",GPC
Statement 18/08/2015 to 17/09/2015,Corporate Resources,MARQUIS OF GRANBY,17/08/2015,10,Subsistence - General,"Eating Places, Restaurants",GPC
Statement 18/08/2015 to 17/09/2015,Corporate Resources,MAX SPIELMANN LTD,15/09/2015,14.85,Other Services - General,Photographic Studios,GPC
Statement 18/08/2015 to 17/09/2015,Corporate Resources,MCL,08/09/2015,180,Other Equipment & Materials - General,"Equipment Rental and Leasing Services, Tool Rental",GPC
Statement 18/08/2015 to 17/09/2015,Corporate Resources,MUSEUMSASSC,16/09/2015,125,Training Expenses - General,Charitable and Social Service Organizations,GPC
Statement 18/08/2015 to 17/09/2015,Corporate Resources,NEW SOUTHERN RAILW,25/08/2015,11.1,Public Transport -  Staff - General,Passenger Railways,GPC
Statement 18/08/2015 to 17/09/2015,Corporate Resources,ONLINE STORE,01/09/2015,150,Training Expenses - General,"Colleges, Universities, Professional Schools, and",GPC
Statement 18/08/2015 to 17/09/2015,Corporate Resources,OPTIMAL WORKSHOP,22/08/2015,69.67,IT Equipment - Software,Computer Software Stores,GPC
Statement 18/08/2015 to 17/09/2015,Corporate Resources,OYSTER RENEW WEB,20/08/2015,-50,Public Transport -  Staff - General,Passenger Railways,GPC
Statement 18/08/2015 to 17/09/2015,Corporate Resources,OYSTER RENEW WEB,03/09/2015,50,Public Transport -  Staff - General,Passenger Railways,GPC
Statement 18/08/2015 to 17/09/2015,Corporate Resources,PATERNOSTER LTD,26/08/2015,5.05,Subsistence - General,"Eating Places, Restaurants",GPC
Statement 18/08/2015 to 17/09/2015,Corporate Resources,PATERNOSTER LTD,26/08/2015,13.9,Subsistence - General,"Eating Places, Restaurants",GPC
Statement 18/08/2015 to 17/09/2015,Corporate Resources,PAYPAL  DLF,16/09/2015,550,Training Expenses - General,Charitable and Social Service Organizations,GPC
Statement 18/08/2015 to 17/09/2015,Corporate Resources,POST OFFICE SHOP,01/09/2015,379.66,Postal Services - General,Postage Stamps,GPC
Statement 18/08/2015 to 17/09/2015,Corporate Resources,PREMIER INN44521250,07/09/2015,72.75,Training Expenses - General,PREMIER TRAVEL,GPC
Statement 18/08/2015 to 17/09/2015,Corporate Resources,PREMIER INN44521260,19/08/2015,56,Subsistence - General,PREMIER TRAVEL,GPC
Statement 18/08/2015 to 17/09/2015,Corporate Resources,PREMIER INN44521260,23/08/2015,37.6,Subsistence - General,PREMIER TRAVEL,GPC
Statement 18/08/2015 to 17/09/2015,Corporate Resources,PREMIER INN44521260,23/08/2015,37.6,Subsistence - General,PREMIER TRAVEL,GPC
Statement 18/08/2015 to 17/09/2015,Corporate Resources,PREMIER INN44521260,23/08/2015,37.6,Subsistence - General,PREMIER TRAVEL,GPC
Statement 18/08/2015 to 17/09/2015,Corporate Resources,PREMIER INN44521260,06/09/2015,41,Subsistence - General,PREMIER TRAVEL,GPC
Statement 18/08/2015 to 17/09/2015,Corporate Resources,PREMIER INN44521260,09/09/2015,37,Subsistence - General,PREMIER TRAVEL,GPC
Statement 18/08/2015 to 17/09/2015,Corporate Resources,PREMIER INN44521260,09/09/2015,37,Subsistence - General,PREMIER TRAVEL,GPC
Statement 18/08/2015 to 17/09/2015,Corporate Resources,PREMIER INN44531610,14/09/2015,-26.25,Training Expenses - General,PREMIER TRAVEL,GPC
Statement 18/08/2015 to 17/09/2015,Corporate Resources,PRET A MANGER,18/08/2015,2.99,Subsistence - General,"Eating Places, Restaurants",GPC
Statement 18/08/2015 to 17/09/2015,Corporate Resources,PRET A MANGER,18/08/2015,1.75,Subsistence - General,"Eating Places, Restaurants",GPC
Statement 18/08/2015 to 17/09/2015,Corporate Resources,PRET A MANGER,18/08/2015,7.05,Subsistence - General,"Eating Places, Restaurants",GPC
Statement 18/08/2015 to 17/09/2015,Corporate Resources,PRET A MANGER,09/09/2015,6.83,Subsistence - General,"Eating Places, Restaurants",GPC
Statement 18/08/2015 to 17/09/2015,Corporate Resources,RADAR COMMUNICATIONS L,28/08/2015,128.5,Training Expenses - General,Professional Services-Not Elsewhere Classified,GPC
Statement 18/08/2015 to 17/09/2015,Corporate Resources,SAINSBURYS S/MKTS,02/09/2015,61.1,Materials - General,"Grocery Stores, Supermarkets",GPC
Statement 18/08/2015 to 17/09/2015,Corporate Resources,SAINSBURYS S/MKTS,11/09/2015,22.1,Materials - General,"Grocery Stores, Supermarkets",GPC
Statement 18/08/2015 to 17/09/2015,Corporate Resources,SAINSBURYS S/MKTS,19/08/2015,6.25,Subsistence - General,"Grocery Stores, Supermarkets",GPC
Statement 18/08/2015 to 17/09/2015,Corporate Resources,SCREWFIX,12/09/2015,75,Other Expenditure - General,"Building Materials, Lumber Stores",GPC
Statement 18/08/2015 to 17/09/2015,Corporate Resources,SCREWFIX DIRECT,01/09/2015,179.98,R & M of Buildings - General,"Building Materials, Lumber Stores",GPC
Statement 18/08/2015 to 17/09/2015,Corporate Resources,SEYMOUR HOTELS LTD,15/09/2015,65,Training Expenses - General,"Lodging-Hotels, Motels, Resorts",GPC
Statement 18/08/2015 to 17/09/2015,Corporate Resources,Shell Ashby,22/08/2015,4.99,Petrol/Oil/Tyres/Spares - General,Service Stations (with or without Ancillary Servic,GPC
Statement 18/08/2015 to 17/09/2015,Corporate Resources,SIGN HERE,28/08/2015,96.18,Other Services - General,"Typesetting, Plate Making, and Related Services",GPC
Statement 18/08/2015 to 17/09/2015,Corporate Resources,SLB SUPPLIES LTD,08/09/2015,20,Other Services - General,Pet Shops-Pet Food and Supplies,GPC
Statement 18/08/2015 to 17/09/2015,Corporate Resources,SPEEDYBOOKER.COM,07/09/2015,53,Public Transport -  Staff - General,"Lodging-Hotels, Motels, Resorts",GPC
Statement 18/08/2015 to 17/09/2015,Corporate Resources,STAPLES UK,20/08/2015,50.75,Stationery - General,"Stationery, Office, and School Supply Stores",GPC
Statement 18/08/2015 to 17/09/2015,Corporate Resources,TESCO STORE 2846,06/09/2015,10,Materials - General,"Grocery Stores, Supermarkets",GPC
Statement 18/08/2015 to 17/09/2015,Corporate Resources,TESCO STORE2097,11/09/2015,8,Subsistence - General,"Grocery Stores, Supermarkets",GPC
Statement 18/08/2015 to 17/09/2015,Corporate Resources,TESCO STORES 2581,05/09/2015,33.75,Other Expenditure - General,"Grocery Stores, Supermarkets",GPC
Statement 18/08/2015 to 17/09/2015,Corporate Resources,TESCO STORES 5067,14/09/2015,2.84,Other Expenditure - General,"Grocery Stores, Supermarkets",GPC
Statement 18/08/2015 to 17/09/2015,Corporate Resources,TESCO STORES-2044,04/09/2015,12,Other Expenditure - General,"Grocery Stores, Supermarkets",GPC
Statement 18/08/2015 to 17/09/2015,Corporate Resources,TESCO-STORES 6065,21/08/2015,2.56,Other Expenditure - General,"Grocery Stores, Supermarkets",GPC
Statement 18/08/2015 to 17/09/2015,Corporate Resources,TFGM METROLINK,20/08/2015,3.1,Public Transport -  Staff - General,"Bus Lines, Charters, Tour Buses",GPC
Statement 18/08/2015 to 17/09/2015,Corporate Resources,TFGM METROLINK,21/08/2015,3.1,Public Transport -  Staff - General,"Bus Lines, Charters, Tour Buses",GPC
Statement 18/08/2015 to 17/09/2015,Corporate Resources,TFGM METROLINK,27/08/2015,3.1,Public Transport -  Staff - General,"Bus Lines, Charters, Tour Buses",GPC
Statement 18/08/2015 to 17/09/2015,Corporate Resources,TFGM METROLINK,01/09/2015,3.1,Public Transport -  Staff - General,"Bus Lines, Charters, Tour Buses",GPC
Statement 18/08/2015 to 17/09/2015,Corporate Resources,TFGM METROLINK,07/09/2015,3.1,Public Transport -  Staff - General,"Bus Lines, Charters, Tour Buses",GPC
Statement 18/08/2015 to 17/09/2015,Corporate Resources,TFGM METROLINK,15/09/2015,6.2,Public Transport -  Staff - General,"Bus Lines, Charters, Tour Buses",GPC
Statement 18/08/2015 to 17/09/2015,Corporate Resources,TFGM METROLINK,16/09/2015,2.8,Public Transport -  Staff - General,"Bus Lines, Charters, Tour Buses",GPC
Statement 18/08/2015 to 17/09/2015,Corporate Resources,THE BULLS HEAD,14/09/2015,9.95,Subsistence - General,"Drinking Places (Alcoholic Beverages)-Bars, Tavern",GPC
Statement 18/08/2015 to 17/09/2015,Corporate Resources,THE ROYAL HOTEL,08/09/2015,156,Subsistence - General,"Lodging-Hotels, Motels, Resorts",GPC
Statement 18/08/2015 to 17/09/2015,Corporate Resources,THE ROYAL HOTEL,08/09/2015,156,Subsistence - General,"Lodging-Hotels, Motels, Resorts",GPC
Statement 18/08/2015 to 17/09/2015,Corporate Resources,TRAINLINE,01/09/2015,54.06,Casual/Essential - General,Passenger Railways,GPC
Statement 18/08/2015 to 17/09/2015,Corporate Resources,TRAINLINE,09/09/2015,67.32,Public Transport -  Staff - General,Passenger Railways,GPC
Statement 18/08/2015 to 17/09/2015,Corporate Resources,TRAVELODGE WEBSITE,18/08/2015,300.79,Training Expenses - General,Travelodge,GPC
Statement 18/08/2015 to 17/09/2015,Corporate Resources,TSGN,07/09/2015,54,Public Transport -  Staff - General,Passenger Railways,GPC
Statement 18/08/2015 to 17/09/2015,Corporate Resources,VERIFONE TAXI/PRIVATE,08/09/2015,7,Public Transport -  Staff - General,Taxicabs and Limousines,GPC
Statement 18/08/2015 to 17/09/2015,Corporate Resources,WEST COAST TRAINS,26/08/2015,18.3,Public Transport -  Staff - General,Passenger Railways,GPC
Statement 18/08/2015 to 17/09/2015,Corporate Resources,WEST COAST TRAINS,14/09/2015,2.5,Public Transport -  Staff - General,Passenger Railways,GPC
Statement 18/08/2015 to 17/09/2015,Corporate Resources,WICKES,26/08/2015,31.21,Other Expenditure - General,"Building Materials, Lumber Stores",GPC
Statement 18/08/2015 to 17/09/2015,Corporate Resources,WICKES,20/08/2015,17.97,Other Services - General,"Building Materials, Lumber Stores",GPC
Statement 18/08/2015 to 17/09/2015,Corporate Resources,WILKO RETAIL LIMIT,20/08/2015,27.14,Operational Equipment - General,Household Appliance Stores,GPC
Statement 18/08/2015 to 17/09/2015,Corporate Resources,WILKO RETAIL LIMIT,26/08/2015,31.65,Stationery - General,Household Appliance Stores,GPC
Statement 18/08/2015 to 17/09/2015,Corporate Resources,WM MORRISON 054,29/08/2015,17.49,Other Expenditure - General,"Grocery Stores, Supermarkets",GPC
Statement 18/08/2015 to 17/09/2015,Corporate Resources,WM MORRISON 054,16/09/2015,15.88,Other Expenditure - General,"Grocery Stores, Supermarkets",GPC
Statement 18/08/2015 to 17/09/2015,Corporate Resources,WM MORRISON 054,08/09/2015,14.04,Other Services - General,"Grocery Stores, Supermarkets",GPC
Statement 18/08/2015 to 17/09/2015,Corporate Resources,WWW OPPASSESSMENT EU COM,20/08/2015,616.2,Training Expenses - General,Business Services-Not Elsewhere Classified,GPC
Statement 18/08/2015 to 17/09/2015,Corporate Resources,WWW OPPASSESSMENT EU COM,21/08/2015,47.4,Training Expenses - General,Business Services-Not Elsewhere Classified,GPC
Statement 18/08/2015 to 17/09/2015,Corporate Resources,WWW OPPASSESSMENT EU COM,15/09/2015,142.2,Training Expenses - General,Business Services-Not Elsewhere Classified,GPC
Statement 18/08/2015 to 17/09/2015,Corporate Resources,WWW.BONDSOLON.COM,20/08/2015,480,Training Expenses - General,"Colleges, Universities, Professional Schools, and",GPC
Statement 18/08/2015 to 17/09/2015,Corporate Resources,WWW.CHARTEREDFORESTERS,20/08/2015,10,Training Expenses - General,Membership Organizations-Not Elsewhere Classified,GPC
Statement 18/08/2015 to 17/09/2015,Corporate Resources,WWW.CIPFA.ORG.UK/PFMCO,08/09/2015,60,Conference - General,Membership Organizations-Not Elsewhere Classified,GPC
Statement 18/08/2015 to 17/09/2015,Corporate Resources,WWW.CIPS.ORG,09/09/2015,191.76,Training Expenses - General,Membership Organizations-Not Elsewhere Classified,GPC
Statement 18/08/2015 to 17/09/2015,Corporate Resources,WWW.COMMIDEA.COM,27/08/2015,165.52,IT Equipment - General,Computer and Data Processing Services,GPC
Statement 18/08/2015 to 17/09/2015,Corporate Resources,WWW.EQUIP4WORK.CO.UK,02/09/2015,140,Operational Equipment - General,"Stationery, Office, and School Supply Stores",GPC
Statement 18/08/2015 to 17/09/2015,Corporate Resources,WWW.FLYBE.CODEVH5T,26/08/2015,298.68,Consultants & Specialists - General,"Air Carriers, Airlines",GPC
Statement 18/08/2015 to 17/09/2015,Corporate Resources,WWW.GOOUTDOORS.CO.UK,01/09/2015,126,Materials - General,"Sports Apparel, Riding Apparel Stores",GPC
Statement 18/08/2015 to 17/09/2015,Corporate Resources,WWW.ICE.ORG.UK,16/09/2015,95,Training Expenses - General,Membership Organizations-Not Elsewhere Classified,GPC
Statement 18/08/2015 to 17/09/2015,Corporate Resources,WWW.OFCOM.ORG.UK,02/09/2015,300,Operational Equipment - General,Professional Services-Not Elsewhere Classified,GPC
Statement 18/08/2015 to 17/09/2015,Corporate Resources,WWW.OFCOM.ORG.UK,02/09/2015,112.5,Operational Equipment - General,Professional Services-Not Elsewhere Classified,GPC
Statement 18/08/2015 to 17/09/2015,Corporate Resources,WWW.PMGLTD.CO.UK,17/08/2015,285,Training Expenses - General,Business Services-Not Elsewhere Classified,GPC
Statement 18/08/2015 to 17/09/2015,Corporate Resources,WWW.PMGLTD.CO.UK,16/09/2015,346.5,Training Expenses - General,Business Services-Not Elsewhere Classified,GPC
Statement 18/08/2015 to 17/09/2015,Corporate Resources,WWW.PUBLICPOLICYEXCHAN,21/08/2015,424,Training Expenses - General,Business Services-Not Elsewhere Classified,GPC
Statement 18/08/2015 to 17/09/2015,Corporate Resources,WWW.SUPERBREAK.COM,27/08/2015,403.2,Training Expenses - General,Travel Agencies,GPC
Statement 18/08/2015 to 17/09/2015,Corporate Resources,WWW.SUPERBREAK.COM,27/08/2015,207.36,Training Expenses - General,Travel Agencies,GPC
Statement 18/08/2015 to 17/09/2015,Corporate Resources,WWW.SUPERBREAK.COM,27/08/2015,220.32,Training Expenses - General,Travel Agencies,GPC
Statement 18/08/2015 to 17/09/2015,Corporate Resources,WWW.TRANSPORTTIMES.CO.,24/08/2015,99.33,Training Expenses - General,Business Services-Not Elsewhere Classified,GPC
Statement 18/08/2015 to 17/09/2015,Corporate Resources,WWW.TRANSPORTTIMES.CO.,11/09/2015,99.33,Training Expenses - General,Business Services-Not Elsewhere Classified,GPC
Statement 18/08/2015 to 17/09/2015,E&T,ALDI,02/09/2015,7.31,Other Expenditure - General,"Grocery Stores, Supermarkets",GPC
Statement 18/08/2015 to 17/09/2015,E&T,Amazon Svcs Europe SAR,03/09/2015,15.81,Books - General,Book Stores,GPC
Statement 18/08/2015 to 17/09/2015,E&T,Amazon Svcs Europe SAR,26/08/2015,178.25,Consultants & Specialists - General,Book Stores,GPC
Statement 18/08/2015 to 17/09/2015,E&T,Amazon UK Marketplace,25/08/2015,51.8,Books - General,Book Stores,GPC
Statement 18/08/2015 to 17/09/2015,E&T,Amazon UK Marketplace,09/09/2015,3.2,Books - General,Book Stores,GPC
Statement 18/08/2015 to 17/09/2015,E&T,Amazon UK Marketplace,24/08/2015,67.91,Materials - General,Miscellaneous and Specialty Retail Stores,GPC
Statement 18/08/2015 to 17/09/2015,E&T,Amazon UK Marketplace,04/09/2015,6.95,Materials - General,Miscellaneous and Specialty Retail Stores,GPC
Statement 18/08/2015 to 17/09/2015,E&T,Amazon UK Marketplace,07/09/2015,28.15,Materials - General,Miscellaneous and Specialty Retail Stores,GPC
Statement 18/08/2015 to 17/09/2015,E&T,Amazon UK Marketplace,09/09/2015,27.95,Materials - General,Miscellaneous and Specialty Retail Stores,GPC
Statement 18/08/2015 to 17/09/2015,E&T,Amazon UK Marketplace,09/09/2015,16.23,Materials - General,Miscellaneous and Specialty Retail Stores,GPC
Statement 18/08/2015 to 17/09/2015,E&T,Amazon UK Marketplace,10/09/2015,12.45,Materials - General,Miscellaneous and Specialty Retail Stores,GPC
Statement 18/08/2015 to 17/09/2015,E&T,Amazon UK Marketplace,11/09/2015,19.8,Materials - General,Miscellaneous and Specialty Retail Stores,GPC
Statement 18/08/2015 to 17/09/2015,E&T,Amazon UK Marketplace,13/09/2015,-28.15,Materials - General,Miscellaneous and Specialty Retail Stores,GPC
Statement 18/08/2015 to 17/09/2015,E&T,Amazon UK Marketplace,14/09/2015,11.48,Materials - General,Miscellaneous and Specialty Retail Stores,GPC
Statement 18/08/2015 to 17/09/2015,E&T,Amazon UK Marketplace,08/09/2015,243.69,Operational Equipment - Purchase,Book Stores,GPC
Statement 18/08/2015 to 17/09/2015,E&T,Amazon UK Marketplace,08/09/2015,9.16,Operational Equipment - Purchase,Miscellaneous and Specialty Retail Stores,GPC
Statement 18/08/2015 to 17/09/2015,E&T,Amazon UK Marketplace,26/08/2015,14.17,Other Equipment & Materials - General,Book Stores,GPC
Statement 18/08/2015 to 17/09/2015,E&T,Amazon UK Retail,08/09/2015,36.4,Operational Equipment - Purchase,Direct Marketers - Other,GPC
Statement 18/08/2015 to 17/09/2015,E&T,Amazon UK Retail,27/08/2015,34.09,Other Equipment & Materials - General,Direct Marketers - Other,GPC
Statement 18/08/2015 to 17/09/2015,E&T,Amazon UK Retail,27/08/2015,34.09,Other Equipment & Materials - General,Direct Marketers - Other,GPC
Statement 18/08/2015 to 17/09/2015,E&T,Amazon UK Retail,25/08/2015,31.51,Other Expenditure - General,Direct Marketers - Other,GPC
Statement 18/08/2015 to 17/09/2015,E&T,Amazon UK Retail,03/09/2015,63.69,Other Expenditure - General,Direct Marketers - Other,GPC
Statement 18/08/2015 to 17/09/2015,E&T,Amazon UK Retail,04/09/2015,39.09,Other Expenditure - General,Direct Marketers - Other,GPC
Statement 18/08/2015 to 17/09/2015,E&T,Amazon UK Retail,09/09/2015,43.04,Other Expenditure - General,Direct Marketers - Other,GPC
Statement 18/08/2015 to 17/09/2015,E&T,ARCO LTD,10/09/2015,34.99,Protective Clothing & Uniforms - General,Industrial Supplies Not Elsewhere Classified,GPC
Statement 18/08/2015 to 17/09/2015,E&T,COVENTRY BUILDING WORK,09/09/2015,696,Training Expenses - General,Vocational and Trade Schools,GPC
Statement 18/08/2015 to 17/09/2015,E&T,EASTMIDLANDSTRAINS,18/08/2015,124.2,Public Transport -  Staff - General,Passenger Railways,GPC
Statement 18/08/2015 to 17/09/2015,E&T,EASTMIDLANDSTRAINS,27/08/2015,162.5,Public Transport -  Staff - General,Passenger Railways,GPC
Statement 18/08/2015 to 17/09/2015,E&T,EASTMIDLANDSTRAINS,01/09/2015,161.5,Public Transport -  Staff - General,Passenger Railways,GPC
Statement 18/08/2015 to 17/09/2015,E&T,EASTMIDLANDSTRAINS,11/09/2015,120.25,Public Transport -  Staff - General,Passenger Railways,GPC
Statement 18/08/2015 to 17/09/2015,E&T,EASTMIDLANDSTRAINS,14/09/2015,167.5,Public Transport -  Staff - General,Passenger Railways,GPC
Statement 18/08/2015 to 17/09/2015,E&T,EASTMIDLANDSTRAINS,16/09/2015,167.5,Public Transport -  Staff - General,Passenger Railways,GPC
Statement 18/08/2015 to 17/09/2015,E&T,IAN BERG PLASTICS,28/08/2015,16.18,Other Services - General,"Automotive Parts, Accessories Stores",GPC
Statement 18/08/2015 to 17/09/2015,E&T,MILL ON THE SOAR,03/09/2015,171,Hospitality - General,"Drinking Places (Alcoholic Beverages)-Bars, Tavern",GPC
Statement 18/08/2015 to 17/09/2015,E&T,MMS.CARDSAVEONLINEPAYM,11/09/2015,183.4,Books - General,Vocational and Trade Schools,GPC
Statement 18/08/2015 to 17/09/2015,E&T,MORGANS LOCKSMITHS,18/08/2015,25.64,Other Equipment & Materials - General,"Shoe Repair Shops, Shoe Shine Parlors, Hat Cleanin",GPC
Statement 18/08/2015 to 17/09/2015,E&T,NOTTS CCC,09/09/2015,982.99,Other Agency & Cont Services - General,"Eating Places, Restaurants",GPC
Statement 18/08/2015 to 17/09/2015,E&T,PREMIER INN44521260,08/09/2015,58.96,Subsistence - General,PREMIER TRAVEL,GPC
Statement 18/08/2015 to 17/09/2015,E&T,RADAR COMMUNICATIONS L,19/08/2015,115.5,Training Expenses - General,Professional Services-Not Elsewhere Classified,GPC
Statement 18/08/2015 to 17/09/2015,E&T,RESEARCH GARAGE GROUP,18/08/2015,84.18,R&M of Vehicles-Non Contract - General,"Automobile and Truck Dealers-Sales, Service, Repai",GPC
Statement 18/08/2015 to 17/09/2015,E&T,RESEARCH GARAGE GROUP,24/08/2015,42,R&M of Vehicles-Non Contract - General,"Automobile and Truck Dealers-Sales, Service, Repai",GPC
Statement 18/08/2015 to 17/09/2015,E&T,ROYAL MAIL,04/09/2015,540,Postal Services - General,Postage Stamps,GPC
Statement 18/08/2015 to 17/09/2015,E&T,TESCO STORES 2950,01/09/2015,20,Materials - General,"Grocery Stores, Supermarkets",GPC
Statement 18/08/2015 to 17/09/2015,E&T,TESCO STORES 2950,15/09/2015,30,Materials - General,"Grocery Stores, Supermarkets",GPC
Statement 18/08/2015 to 17/09/2015,E&T,TVLICENSING.CO.UK,20/08/2015,145.5,Schools Agency staff - Teaching Staff,"Management, Consulting and Public Relations Servic",GPC
Statement 18/08/2015 to 17/09/2015,E&T,TVLICENSING.CO.UK,20/08/2015,145.5,Schools Agency staff - Teaching Staff,"Management, Consulting and Public Relations Servic",GPC
Statement 18/08/2015 to 17/09/2015,E&T,WWW.DVLA.GOV.UK,10/09/2015,167.5,Road Licences - General,Government Services-Not Elsewhere Classified,GPC
Statement 18/08/2015 to 17/09/2015,E&T,WWW.ENERGYLIGHTBULBS.CO.,09/09/2015,35.98,Other Equipment & Materials - General,Miscellaneous and Specialty Retail Stores,GPC
Statement 18/08/2015 to 17/09/2015,E&T,WWW.ICE.ORG.UK,19/08/2015,296.4,Other Services - General,Membership Organizations-Not Elsewhere Classified,GPC
Statement 18/08/2015 to 17/09/2015,E&T,WWW.NECCONTRACT.COM,21/08/2015,112.4,Printing - General,Miscellaneous Publishing and  Printing,GPC
Statement 18/08/2015 to 17/09/2015,Leicestershire Highways,DVSA MOT COMP 2,08/09/2015,205,Materials - General,Government Services-Not Elsewhere Classified,GPC
Statement 18/08/2015 to 17/09/2015,Public Health,Amazon UK Marketplace,19/08/2015,5.9,Dept Administration - General,Miscellaneous and Specialty Retail Stores,GPC
Statement 18/08/2015 to 17/09/2015,Public Health,Amazon UK Marketplace,01/09/2015,3.89,Publicity/Marketing - General,Miscellaneous and Specialty Retail Stores,GPC
Statement 18/08/2015 to 17/09/2015,Public Health,Amazon UK Retail,18/08/2015,76.28,Dept Administration - General,Direct Marketers - Other,GPC
Statement 18/08/2015 to 17/09/2015,Public Health,Amazon UK Retail,18/08/2015,44.04,Dept Administration - General,Direct Marketers - Other,GPC
Statement 18/08/2015 to 17/09/2015,Public Health,Amazon UK Retail,09/09/2015,182.11,Dept Administration - General,Direct Marketers - Other,GPC
Statement 18/08/2015 to 17/09/2015,Public Health,FACEBOOK 2MH6N76P82,31/08/2015,0.98,Advertising - General,Advertising Services,GPC
Statement 18/08/2015 to 17/09/2015,Public Health,FACEBOOK 5NYCK76P82,23/08/2015,20.02,Advertising - General,Advertising Services,GPC
Statement 18/08/2015 to 17/09/2015,Public Health,JURYS INN SHEFFIELD,03/09/2015,76.5,Training Expenses - General,"Lodging-Hotels, Motels, Resorts",GPC
Statement 18/08/2015 to 17/09/2015,Public Health,NCP LIMITED,20/08/2015,7,Subsistence - General,Automobile Parking Lots and Garages,GPC
Statement 18/08/2015 to 17/09/2015,Public Health,NCP LIMITED,03/09/2015,10.5,Subsistence - General,Automobile Parking Lots and Garages,GPC
Statement 18/08/2015 to 17/09/2015,Public Health,NCP LIMITED,13/09/2015,5.33,Subsistence - General,Automobile Parking Lots and Garages,GPC
Statement 18/08/2015 to 17/09/2015,Public Health,PARTICIPANT UK LIMITED,03/09/2015,15.83,Conference - General,Computer Software Stores,GPC
Statement 18/08/2015 to 17/09/2015,Public Health,PARTICIPANT UK LIMITED,03/09/2015,15.83,Conference - General,Computer Software Stores,GPC
Statement 18/08/2015 to 17/09/2015,Public Health,PAYPAL  BEMINDFULNO,17/08/2015,195,Training Expenses - General,Schools and Educational Services-Not Elsewhere Cla,GPC
Statement 18/08/2015 to 17/09/2015,Public Health,TRAINLINE.COM,25/08/2015,-91.5,Public Transport -  Staff - General,Passenger Railways,GPC
"**Amounts stated are net of VAT, except where VAT has not been recovered.",,,,,,,
